DepartmentFamily,Entity,Date,ExpenseType,ExpenseArea,Supplier,TransactionNumber,Amount,VATRegistrationNo
BIS,The Insolvency Service,01/12/2014,Postage,OFFICIAL RECEIVER SERVICES                                                                          ,ABACUS EXPRESS,BA0000281907,14.51,417924146
BIS,The Insolvency Service,15/12/2014,Postage,OFFICIAL RECEIVER SERVICES                                                                          ,ABACUS EXPRESS,BA0000282383,14.51,417924146
BIS,The Insolvency Service,15/12/2014,Postage,OFFICIAL RECEIVER SERVICES                                                                          ,ABACUS EXPRESS,BA0000282384,14.51,417924146
BIS,The Insolvency Service,15/12/2014,Postage,OFFICIAL RECEIVER SERVICES                                                                          ,ABACUS EXPRESS,BA0000282385,19.89,417924146
BIS,The Insolvency Service,22/12/2014,Postage,OFFICIAL RECEIVER SERVICES                                                                          ,ABACUS EXPRESS,BA0000282580,14.51,417924146
BIS,The Insolvency Service,22/12/2014,Postage,OFFICIAL RECEIVER SERVICES                                                                          ,ABACUS EXPRESS,BA0000282581,14.51,417924146
BIS,The Insolvency Service,22/12/2014,Postage,OFFICIAL RECEIVER SERVICES                                                                          ,ABACUS EXPRESS,BA0000282582,19.89,417924146
BIS,The Insolvency Service,22/12/2014,Postage,OFFICIAL RECEIVER SERVICES                                                                          ,ABACUS EXPRESS,BA0000282583,14.51,417924146
BIS,The Insolvency Service,22/12/2014,Postage,OFFICIAL RECEIVER SERVICES                                                                          ,ABACUS EXPRESS,BA0000282584,14.51,417924146
BIS,The Insolvency Service,22/12/2014,Postage,OFFICIAL RECEIVER SERVICES                                                                          ,ABACUS EXPRESS,BA0000282585,14.51,417924146
BIS,The Insolvency Service,22/12/2014,Postage,OFFICIAL RECEIVER SERVICES                                                                          ,ABACUS EXPRESS,BA0000282586,23.11,417924146
BIS,The Insolvency Service,23/12/2014,Postage,OFFICIAL RECEIVER SERVICES                                                                          ,ABACUS EXPRESS,BA0000282622,14.51,417924146
BIS,The Insolvency Service,11/12/2014,Conferences,INVESTIGATIONS & ENFORCEMENT                                                                        ,ABBEY COMMUNITY SERVICES LTD,BA0000282284,120.00,905362733
BIS,The Insolvency Service,02/12/2014,Training Costs,FINANCE AND COMMERCIAL                                                                              ,ABBEY COMMUNITY SERVICES LTD,BA0000281988,470.25,905362733
BIS,The Insolvency Service,02/12/2014,Telecoms,FINANCE AND COMMERCIAL                                                                              ,ADMIRAL AUDIO VISUAL LTD,BA0000281990,354.00,991280109
BIS,The Insolvency Service,12/12/2014,Telecoms,INFORMATION TECHNOLOGY                                                                              ,ADMIRAL AUDIO VISUAL LTD,BA0000282303,"7,471.20",991280109
BIS,The Insolvency Service,12/12/2014,Telecoms,INFORMATION TECHNOLOGY                                                                              ,ADMIRAL AUDIO VISUAL LTD,BA0000282304,"4,820.40",991280109
BIS,The Insolvency Service,18/12/2014,Agency Workers,FINANCE AND COMMERCIAL,ALLEN LANE LIMITED,BA0000282496,"7,160.58",835970985
BIS,The Insolvency Service,18/12/2014,Agency Workers,FINANCE AND COMMERCIAL,ALLEN LANE LIMITED,BA0000282497,"2,675.52",835970985
BIS,The Insolvency Service,31/12/2014,Agency Workers,FINANCE AND COMMERCIAL,ALLEN LANE LIMITED,BA0000282754,"2,541.74",835970985
BIS,The Insolvency Service,09/12/2014,Office Supplies and Services,OFFICIAL RECEIVER SERVICES                                                                          ,ALLEYCATS LTD                                               ,BA0000282162,140.00,
BIS,The Insolvency Service,05/12/2014,Accommodation,FINANCE AND COMMERCIAL                                                                              ,AMARYLLIS,BA0000282131,"11,599.10",
BIS,The Insolvency Service,01/12/2014,Computer and IT Systems,FINANCE AND COMMERCIAL                                                                              ,AMAZON.CO.UK LTD,BA0000282566,32.70,727255821
BIS,The Insolvency Service,01/12/2014,Office Supplies and Services,BUSINESS SERVICES DIRECTORATE                                                                       ,AMAZON.CO.UK LTD,BA0000282566,25.92,727255821
BIS,The Insolvency Service,01/12/2014,Office Supplies and Services,FINANCE AND COMMERCIAL                                                                              ,AMAZON.CO.UK LTD,BA0000282566,23.94,727255821
BIS,The Insolvency Service,01/12/2014,Office Supplies and Services,FINANCE AND COMMERCIAL                                                                              ,AMAZON.CO.UK LTD,BA0000282566,64.37,727255821
BIS,The Insolvency Service,01/12/2014,Office Supplies and Services,FINANCE AND COMMERCIAL                                                                              ,AMAZON.CO.UK LTD,BA0000282566,470.63,727255821
BIS,The Insolvency Service,01/12/2014,Office Supplies and Services,FINANCE AND COMMERCIAL                                                                              ,AMAZON.CO.UK LTD,BA0000282566,33.97,727255821
BIS,The Insolvency Service,01/12/2014,Office Supplies and Services,FINANCE AND COMMERCIAL                                                                              ,AMAZON.CO.UK LTD,BA0000282566,16.30,727255821
BIS,The Insolvency Service,01/12/2014,Office Supplies and Services,FINANCE AND COMMERCIAL                                                                              ,AMAZON.CO.UK LTD,BA0000282566,54.99,727255821
BIS,The Insolvency Service,01/12/2014,Office Supplies and Services,FINANCE AND COMMERCIAL                                                                              ,AMAZON.CO.UK LTD,BA0000282566,177.15,727255821
BIS,The Insolvency Service,01/12/2014,Office Supplies and Services,FINANCE AND COMMERCIAL                                                                              ,AMAZON.CO.UK LTD,BA0000282566,359.70,727255821
BIS,The Insolvency Service,01/12/2014,Office Supplies and Services,FINANCE AND COMMERCIAL                                                                              ,AMAZON.CO.UK LTD,BA0000282566,24.17,727255821
BIS,The Insolvency Service,01/12/2014,Office Supplies and Services,FINANCE AND COMMERCIAL                                                                              ,AMAZON.CO.UK LTD,BA0000282566,238.05,727255821
BIS,The Insolvency Service,01/12/2014,Office Supplies and Services,FINANCE AND COMMERCIAL                                                                              ,AMAZON.CO.UK LTD,BA0000282566,16.38,727255821
BIS,The Insolvency Service,01/12/2014,Office Supplies and Services,FINANCE AND COMMERCIAL                                                                              ,AMAZON.CO.UK LTD,BA0000282566,83.98,727255821
BIS,The Insolvency Service,01/12/2014,Office Supplies and Services,FINANCE AND COMMERCIAL                                                                              ,AMAZON.CO.UK LTD,BA0000282566,36.30,727255821
BIS,The Insolvency Service,01/12/2014,Training Costs,FINANCE AND COMMERCIAL                                                                              ,AMAZON.CO.UK LTD,BA0000282566,29.98,727255821
BIS,The Insolvency Service,01/12/2014,Office Supplies and Services,FINANCE AND COMMERCIAL                                                                              ,AMMERHURST LTD,BA0000282566,37.04,231097780
BIS,The Insolvency Service,01/12/2014,Office Supplies and Services,FINANCE AND COMMERCIAL                                                                              ,AMMERHURST LTD,BA0000282566,9.52,231097780
BIS,The Insolvency Service,19/12/2014,Accommodation,ESTATES,ANGLIAN WATER,BA0000282544,116.09,514060002
BIS,The Insolvency Service,12/12/2014,Investigation and Enforcement Costs,INVESTIGATIONS & ENFORCEMENT                                                                        ,APL ACCOUNTANTS LLP,BA0000282305,"1,645.20",854660115
BIS,The Insolvency Service,12/12/2014,Investigation and Enforcement Costs,INVESTIGATIONS & ENFORCEMENT                                                                        ,APL ACCOUNTANTS LLP,BA0000282306,"2,515.15",854660115
BIS,The Insolvency Service,01/12/2014,Office Machinery,INVESTIGATIONS & ENFORCEMENT                                                                        ,APPLE ONLINE,BA0000282566,14.00,
BIS,The Insolvency Service,04/12/2014,Office Supplies and Services,BUSINESS SERVICES DIRECTORATE                                                                       ,ARCHIVE 2000 UK LTD,BA0000282039,"1,392.44",425421969
BIS,The Insolvency Service,10/12/2014,Computer and IT Systems,BUSINESS SERVICES DIRECTORATE                                                                       ,ATOS IT SERVICES UK LTD,BA0000282241,"1,687.48",
BIS,The Insolvency Service,12/12/2014,Computer and IT Systems,BUSINESS SERVICES DIRECTORATE                                                                       ,ATOS IT SERVICES UK LTD,BA0000282322,255.67,
BIS,The Insolvency Service,19/12/2014,Computer and IT Systems,FINANCE AND COMMERCIAL                                                                              ,ATOS IT SERVICES UK LTD,BA0000282509,"3,811.46",
BIS,The Insolvency Service,19/12/2014,Computer and IT Systems,FINANCE AND COMMERCIAL                                                                              ,ATOS IT SERVICES UK LTD,BA0000282509,"4,158.77",
BIS,The Insolvency Service,19/12/2014,Computer and IT Systems,FINANCE AND COMMERCIAL                                                                              ,ATOS IT SERVICES UK LTD,BA0000282509,"12,377.05",
BIS,The Insolvency Service,04/12/2014,Computer and IT Systems,INFORMATION TECHNOLOGY                                                                              ,ATOS IT SERVICES UK LTD,BA0000282043,"27,644.00",
BIS,The Insolvency Service,05/12/2014,Computer and IT Systems,INFORMATION TECHNOLOGY                                                                              ,ATOS IT SERVICES UK LTD,BA0000282112,"335,488.35",
BIS,The Insolvency Service,05/12/2014,Computer and IT Systems,INFORMATION TECHNOLOGY                                                                              ,ATOS IT SERVICES UK LTD,BA0000282113,"63,056.00",
BIS,The Insolvency Service,10/12/2014,Computer and IT Systems,INFORMATION TECHNOLOGY                                                                              ,ATOS IT SERVICES UK LTD,BA0000282240,"205,367.00",
BIS,The Insolvency Service,12/12/2014,Computer and IT Systems,INFORMATION TECHNOLOGY                                                                              ,ATOS IT SERVICES UK LTD,BA0000282322,"2,680.18",
BIS,The Insolvency Service,15/12/2014,Computer and IT Systems,INFORMATION TECHNOLOGY                                                                              ,ATOS IT SERVICES UK LTD,BA0000282409,"292,928.00",
BIS,The Insolvency Service,16/12/2014,Computer and IT Systems,INFORMATION TECHNOLOGY                                                                              ,ATOS IT SERVICES UK LTD,BA0000282417,"6,108.00",
BIS,The Insolvency Service,12/12/2014,Employee Related Costs,PEOPLE & CAPABILITY                                                                                 ,ATOS IT SERVICES UK LTD,BA0000282322,227.63,
BIS,The Insolvency Service,19/12/2014,Employee Related Costs,PEOPLE & CAPABILITY                                                                                 ,ATOS IT SERVICES UK LTD,BA0000282508,247.85,
BIS,The Insolvency Service,01/12/2014,Agency Workers,FINANCE AND COMMERCIAL                                                                              ,BADENOCH & CLARK,BA0000281900,"3,299.40",232347975
BIS,The Insolvency Service,05/12/2014,Agency Workers,FINANCE AND COMMERCIAL                                                                              ,BADENOCH & CLARK,BA0000282122,930.00,232347975
BIS,The Insolvency Service,11/12/2014,Agency Workers,FINANCE AND COMMERCIAL                                                                              ,BADENOCH & CLARK,BA0000282262,"2,640.00",232347975
BIS,The Insolvency Service,11/12/2014,Agency Workers,FINANCE AND COMMERCIAL                                                                              ,BADENOCH & CLARK,BA0000282263,"3,299.40",232347975
BIS,The Insolvency Service,22/12/2014,Agency Workers,FINANCE AND COMMERCIAL                                                                              ,BADENOCH & CLARK,BA0000282600,"3,299.40",232347975
BIS,The Insolvency Service,22/12/2014,Agency Workers,FINANCE AND COMMERCIAL                                                                              ,BADENOCH & CLARK,BA0000282604,"3,299.40",232347975
BIS,The Insolvency Service,22/12/2014,Agency Workers,FINANCE AND COMMERCIAL                                                                              ,BADENOCH & CLARK,BA0000282605,"3,299.40",232347975
BIS,The Insolvency Service,29/12/2014,Agency Workers,FINANCE AND COMMERCIAL                                                                              ,BADENOCH & CLARK,BA0000282670,"1,650.00",232347975
BIS,The Insolvency Service,29/12/2014,Agency Workers,FINANCE AND COMMERCIAL                                                                              ,BADENOCH & CLARK,BA0000282671,"3,299.40",232347975
BIS,The Insolvency Service,29/12/2014,Agency Workers,FINANCE AND COMMERCIAL                                                                              ,BADENOCH & CLARK,BA0000282678,744.00,232347975
BIS,The Insolvency Service,29/12/2014,Agency Workers,FINANCE AND COMMERCIAL                                                                              ,BADENOCH & CLARK,BA0000282679,186.00,232347975
BIS,The Insolvency Service,29/12/2014,Agency Workers,FINANCE AND COMMERCIAL                                                                              ,BADENOCH & CLARK,BA0000282680,930.00,232347975
BIS,The Insolvency Service,29/12/2014,Agency Workers,FINANCE AND COMMERCIAL                                                                              ,BADENOCH & CLARK,BA0000282681,930.00,232347975
BIS,The Insolvency Service,01/12/2014,Investigation and Enforcement Costs,INVESTIGATIONS & ENFORCEMENT                                                                        ,BAKER TILLY,BA0000281924,"5,268.00",890965570
BIS,The Insolvency Service,22/12/2014,Computer and IT Systems,PROJECTS                                                                                            ,BANG COMMUNICATIONS                                         ,BA0000282603,"16,752.00",569978254
BIS,The Insolvency Service,04/12/2014,Accommodation,ESTATES,BANNER BUSINESS SERVICES Ltd.,BA0000282089,19.80,731860439
BIS,The Insolvency Service,04/12/2014,Accommodation,ESTATES,BANNER BUSINESS SERVICES Ltd.,BA0000282089,34.38,731860439
BIS,The Insolvency Service,04/12/2014,Accommodation,ESTATES,BANNER BUSINESS SERVICES Ltd.,BA0000282089,43.20,731860439
BIS,The Insolvency Service,04/12/2014,Accommodation,ESTATES,BANNER BUSINESS SERVICES Ltd.,BA0000282089,52.11,731860439
BIS,The Insolvency Service,04/12/2014,Accommodation,ESTATES,BANNER BUSINESS SERVICES Ltd.,BA0000282089,52.20,731860439
BIS,The Insolvency Service,04/12/2014,Accommodation,ESTATES,BANNER BUSINESS SERVICES Ltd.,BA0000282089,52.92,731860439
BIS,The Insolvency Service,04/12/2014,Accommodation,ESTATES,BANNER BUSINESS SERVICES Ltd.,BA0000282089,63.80,731860439
BIS,The Insolvency Service,04/12/2014,Accommodation,ESTATES,BANNER BUSINESS SERVICES Ltd.,BA0000282089,76.20,731860439
BIS,The Insolvency Service,04/12/2014,Accommodation,ESTATES,BANNER BUSINESS SERVICES Ltd.,BA0000282089,85.50,731860439
BIS,The Insolvency Service,04/12/2014,Accommodation,ESTATES,BANNER BUSINESS SERVICES Ltd.,BA0000282089,87.02,731860439
BIS,The Insolvency Service,04/12/2014,Accommodation,ESTATES,BANNER BUSINESS SERVICES Ltd.,BA0000282089,93.10,731860439
BIS,The Insolvency Service,04/12/2014,Accommodation,ESTATES,BANNER BUSINESS SERVICES Ltd.,BA0000282089,115.06,731860439
BIS,The Insolvency Service,04/12/2014,Accommodation,ESTATES,BANNER BUSINESS SERVICES Ltd.,BA0000282089,122.08,731860439
BIS,The Insolvency Service,04/12/2014,Accommodation,ESTATES,BANNER BUSINESS SERVICES Ltd.,BA0000282089,128.57,731860439
BIS,The Insolvency Service,04/12/2014,Accommodation,ESTATES,BANNER BUSINESS SERVICES Ltd.,BA0000282089,145.00,731860439
BIS,The Insolvency Service,04/12/2014,Accommodation,ESTATES,BANNER BUSINESS SERVICES Ltd.,BA0000282089,167.22,731860439
BIS,The Insolvency Service,04/12/2014,Accommodation,ESTATES,BANNER BUSINESS SERVICES Ltd.,BA0000282089,174.84,731860439
BIS,The Insolvency Service,04/12/2014,Accommodation,ESTATES,BANNER BUSINESS SERVICES Ltd.,BA0000282089,216.00,731860439
BIS,The Insolvency Service,04/12/2014,Accommodation,ESTATES,BANNER BUSINESS SERVICES Ltd.,BA0000282089,504.72,731860439
BIS,The Insolvency Service,04/12/2014,Accommodation,ESTATES,BANNER BUSINESS SERVICES Ltd.,BA0000282089,"1,292.58",731860439
BIS,The Insolvency Service,19/12/2014,Office Supplies and Services,INFORMATION TECHNOLOGY                                                                              ,BANNER BUSINESS SERVICES Ltd.,BA0000282511,"4,356.40",731860439
BIS,The Insolvency Service,19/12/2014,Office Supplies and Services,INVESTIGATIONS & ENFORCEMENT                                                                        ,BANNER BUSINESS SERVICES Ltd.,BA0000282511,273.70,731860439
BIS,The Insolvency Service,19/12/2014,Office Supplies and Services,OFFICIAL RECEIVER SERVICES                                                                          ,BANNER BUSINESS SERVICES Ltd.,BA0000282511,7.39,731860439
BIS,The Insolvency Service,19/12/2014,Office Supplies and Services,OFFICIAL RECEIVER SERVICES                                                                          ,BANNER BUSINESS SERVICES Ltd.,BA0000282511,44.21,731860439
BIS,The Insolvency Service,19/12/2014,Office Supplies and Services,OFFICIAL RECEIVER SERVICES                                                                          ,BANNER BUSINESS SERVICES Ltd.,BA0000282511,155.16,731860439
BIS,The Insolvency Service,19/12/2014,Office Supplies and Services,OFFICIAL RECEIVER SERVICES                                                                          ,BANNER BUSINESS SERVICES Ltd.,BA0000282511,155.58,731860439
BIS,The Insolvency Service,19/12/2014,Office Supplies and Services,OFFICIAL RECEIVER SERVICES                                                                          ,BANNER BUSINESS SERVICES Ltd.,BA0000282511,171.92,731860439
BIS,The Insolvency Service,19/12/2014,Office Supplies and Services,OFFICIAL RECEIVER SERVICES                                                                          ,BANNER BUSINESS SERVICES Ltd.,BA0000282511,215.95,731860439
BIS,The Insolvency Service,19/12/2014,Office Supplies and Services,OFFICIAL RECEIVER SERVICES                                                                          ,BANNER BUSINESS SERVICES Ltd.,BA0000282511,263.26,731860439
BIS,The Insolvency Service,19/12/2014,Office Supplies and Services,OFFICIAL RECEIVER SERVICES                                                                          ,BANNER BUSINESS SERVICES Ltd.,BA0000282511,275.68,731860439
BIS,The Insolvency Service,19/12/2014,Office Supplies and Services,OFFICIAL RECEIVER SERVICES                                                                          ,BANNER BUSINESS SERVICES Ltd.,BA0000282511,295.39,731860439
BIS,The Insolvency Service,19/12/2014,Office Supplies and Services,OFFICIAL RECEIVER SERVICES                                                                          ,BANNER BUSINESS SERVICES Ltd.,BA0000282511,362.21,731860439
BIS,The Insolvency Service,19/12/2014,Office Supplies and Services,OFFICIAL RECEIVER SERVICES                                                                          ,BANNER BUSINESS SERVICES Ltd.,BA0000282511,439.30,731860439
BIS,The Insolvency Service,19/12/2014,Office Supplies and Services,OFFICIAL RECEIVER SERVICES                                                                          ,BANNER BUSINESS SERVICES Ltd.,BA0000282511,724.56,731860439
BIS,The Insolvency Service,19/12/2014,Office Supplies and Services,OFFICIAL RECEIVER SERVICES                                                                          ,BANNER BUSINESS SERVICES Ltd.,BA0000282511,872.51,731860439
BIS,The Insolvency Service,19/12/2014,Office Supplies and Services,OFFICIAL RECEIVER SERVICES                                                                          ,BANNER BUSINESS SERVICES Ltd.,BA0000282511,"1,098.48",731860439
BIS,The Insolvency Service,01/12/2014,Accommodation,FINANCE AND COMMERCIAL                                                                              ,Beal UK Ltd�T/A Cable Ties Online,BA0000282566,104.28,525738627
BIS,The Insolvency Service,05/12/2014,Accommodation,ESTATES,BERKLEY ESTATES LONDON LIMITED,BA0000282119,"2,770.49",
BIS,The Insolvency Service,09/12/2014,Accommodation,ESTATES,BERKLEY ESTATES LONDON LIMITED,BA0000282157,"1,443.16",
BIS,The Insolvency Service,11/12/2014,Investigation and Enforcement Costs,INVESTIGATIONS & ENFORCEMENT                                                                        ,BOND DICKINSON                                              ,BA0000282282,238.00,123392627
BIS,The Insolvency Service,22/12/2014,Investigation and Enforcement Costs,INVESTIGATIONS & ENFORCEMENT                                                                        ,BOND DICKINSON                                              ,BA0000282593,"41,450.54",123392627
BIS,The Insolvency Service,22/12/2014,Investigation and Enforcement Costs,INVESTIGATIONS & ENFORCEMENT                                                                        ,BOND DICKINSON                                              ,BA0000282593,"2,673.00",123392627
BIS,The Insolvency Service,22/12/2014,Investigation and Enforcement Costs,INVESTIGATIONS & ENFORCEMENT                                                                        ,BOND DICKINSON                                              ,BA0000282593,"18,325.90",123392627
BIS,The Insolvency Service,22/12/2014,Investigation and Enforcement Costs,INVESTIGATIONS & ENFORCEMENT                                                                        ,BOND DICKINSON                                              ,BA0000282593,"77,980.55",123392627
BIS,The Insolvency Service,22/12/2014,Investigation and Enforcement Costs,INVESTIGATIONS & ENFORCEMENT                                                                        ,BOND DICKINSON                                              ,BA0000282593,"1,018.70",123392627
BIS,The Insolvency Service,22/12/2014,Investigation and Enforcement Costs,INVESTIGATIONS & ENFORCEMENT                                                                        ,BOND DICKINSON                                              ,BA0000282593,105.00,123392627
BIS,The Insolvency Service,22/12/2014,Investigation and Enforcement Costs,INVESTIGATIONS & ENFORCEMENT                                                                        ,BOND DICKINSON                                              ,BA0000282593,"6,677.70",123392627
BIS,The Insolvency Service,22/12/2014,Investigation and Enforcement Costs,INVESTIGATIONS & ENFORCEMENT                                                                        ,BOND DICKINSON                                              ,BA0000282593,"3,233.60",123392627
BIS,The Insolvency Service,22/12/2014,Investigation and Enforcement Costs,INVESTIGATIONS & ENFORCEMENT                                                                        ,BOND DICKINSON                                              ,BA0000282593,"5,311.00",123392627
BIS,The Insolvency Service,22/12/2014,Computer and IT Systems,INFORMATION TECHNOLOGY                                                                              ,BOTTOMLINE TECHNOLOGIES,BA0000282591,300.00,724548231
BIS,The Insolvency Service,18/12/2014,Training Costs,PEOPLE & CAPABILITY                                                                                 ,BPP PROFESSIONAL EDUCATION,BA0000282503,"3,160.00",466451629
BIS,The Insolvency Service,23/12/2014,Training Costs,PEOPLE & CAPABILITY                                                                                 ,BPP PROFESSIONAL EDUCATION,BA0000282656,"5,610.00",466451629
BIS,The Insolvency Service,01/12/2014,Accommodation,ESTATES,BRADLEY HALL                                                ,BA0000281932,"24,708.00",
BIS,The Insolvency Service,01/12/2014,Accommodation,ESTATES,BRADLEY HALL                                                ,BA0000281932,"10,093.25",
BIS,The Insolvency Service,15/12/2014,Agency Workers,FINANCE AND COMMERCIAL                                                                              ,BRIGHT TRANSFORMATIONS LTD                                  ,BA0000282362,"2,730.00",150037651
BIS,The Insolvency Service,01/12/2014,Accommodation,ESTATES,BRITISH GAS BUSINESS,BA0000281895,51.84,684966762
BIS,The Insolvency Service,01/12/2014,Accommodation,ESTATES,BRITISH GAS BUSINESS,BA0000281896,148.70,684966762
BIS,The Insolvency Service,01/12/2014,Accommodation,ESTATES,BRITISH GAS BUSINESS,BA0000281908,97.05,684966762
BIS,The Insolvency Service,01/12/2014,Accommodation,ESTATES,BRITISH GAS BUSINESS,BA0000281922,53.68,684966762
BIS,The Insolvency Service,01/12/2014,Accommodation,ESTATES,BRITISH GAS BUSINESS,BA0000281925,883.87,684966762
BIS,The Insolvency Service,29/12/2014,Accommodation,ESTATES,BRITISH GAS BUSINESS,BA0000282682,195.02,684966762
BIS,The Insolvency Service,19/12/2014,Agency Workers,BUSINESS SERVICES DIRECTORATE                                                                       ,BROOK STREET (UK) LTD,BA0000282481,458.10,
BIS,The Insolvency Service,19/12/2014,Agency Workers,BUSINESS SERVICES DIRECTORATE                                                                       ,BROOK STREET (UK) LTD,BA0000282481,549.70,
BIS,The Insolvency Service,19/12/2014,Agency Workers,BUSINESS SERVICES DIRECTORATE                                                                       ,BROOK STREET (UK) LTD,BA0000282481,546.12,
BIS,The Insolvency Service,19/12/2014,Agency Workers,BUSINESS SERVICES DIRECTORATE                                                                       ,BROOK STREET (UK) LTD,BA0000282481,319.94,
BIS,The Insolvency Service,19/12/2014,Agency Workers,BUSINESS SERVICES DIRECTORATE                                                                       ,BROOK STREET (UK) LTD,BA0000282481,382.32,
BIS,The Insolvency Service,19/12/2014,Agency Workers,BUSINESS SERVICES DIRECTORATE                                                                       ,BROOK STREET (UK) LTD,BA0000282481,433.70,
BIS,The Insolvency Service,19/12/2014,Agency Workers,BUSINESS SERVICES DIRECTORATE                                                                       ,BROOK STREET (UK) LTD,BA0000282481,439.78,
BIS,The Insolvency Service,19/12/2014,Agency Workers,BUSINESS SERVICES DIRECTORATE                                                                       ,BROOK STREET (UK) LTD,BA0000282481,421.86,
BIS,The Insolvency Service,19/12/2014,Agency Workers,BUSINESS SERVICES DIRECTORATE                                                                       ,BROOK STREET (UK) LTD,BA0000282481,440.21,
BIS,The Insolvency Service,19/12/2014,Agency Workers,BUSINESS SERVICES DIRECTORATE                                                                       ,BROOK STREET (UK) LTD,BA0000282481,452.44,
BIS,The Insolvency Service,19/12/2014,Agency Workers,BUSINESS SERVICES DIRECTORATE                                                                       ,BROOK STREET (UK) LTD,BA0000282481,452.44,
BIS,The Insolvency Service,19/12/2014,Agency Workers,BUSINESS SERVICES DIRECTORATE                                                                       ,BROOK STREET (UK) LTD,BA0000282481,143.40,
BIS,The Insolvency Service,19/12/2014,Agency Workers,BUSINESS SERVICES DIRECTORATE                                                                       ,BROOK STREET (UK) LTD,BA0000282481,530.58,
BIS,The Insolvency Service,19/12/2014,Agency Workers,BUSINESS SERVICES DIRECTORATE                                                                       ,BROOK STREET (UK) LTD,BA0000282481,530.58,
BIS,The Insolvency Service,19/12/2014,Agency Workers,BUSINESS SERVICES DIRECTORATE                                                                       ,BROOK STREET (UK) LTD,BA0000282481,452.44,
BIS,The Insolvency Service,19/12/2014,Agency Workers,BUSINESS SERVICES DIRECTORATE                                                                       ,BROOK STREET (UK) LTD,BA0000282481,531.02,
BIS,The Insolvency Service,19/12/2014,Agency Workers,BUSINESS SERVICES DIRECTORATE                                                                       ,BROOK STREET (UK) LTD,BA0000282481,448.44,
BIS,The Insolvency Service,19/12/2014,Agency Workers,BUSINESS SERVICES DIRECTORATE                                                                       ,BROOK STREET (UK) LTD,BA0000282481,327.24,
BIS,The Insolvency Service,19/12/2014,Agency Workers,BUSINESS SERVICES DIRECTORATE                                                                       ,BROOK STREET (UK) LTD,BA0000282481,538.20,
BIS,The Insolvency Service,19/12/2014,Agency Workers,BUSINESS SERVICES DIRECTORATE                                                                       ,BROOK STREET (UK) LTD,BA0000282481,509.50,
BIS,The Insolvency Service,19/12/2014,Agency Workers,BUSINESS SERVICES DIRECTORATE                                                                       ,BROOK STREET (UK) LTD,BA0000282481,504.80,
BIS,The Insolvency Service,19/12/2014,Agency Workers,BUSINESS SERVICES DIRECTORATE                                                                       ,BROOK STREET (UK) LTD,BA0000282481,534.06,
BIS,The Insolvency Service,19/12/2014,Agency Workers,BUSINESS SERVICES DIRECTORATE                                                                       ,BROOK STREET (UK) LTD,BA0000282481,531.02,
BIS,The Insolvency Service,19/12/2014,Agency Workers,BUSINESS SERVICES DIRECTORATE                                                                       ,BROOK STREET (UK) LTD,BA0000282481,451.99,
BIS,The Insolvency Service,19/12/2014,Agency Workers,BUSINESS SERVICES DIRECTORATE                                                                       ,BROOK STREET (UK) LTD,BA0000282481,368.96,
BIS,The Insolvency Service,19/12/2014,Agency Workers,BUSINESS SERVICES DIRECTORATE                                                                       ,BROOK STREET (UK) LTD,BA0000282481,375.18,
BIS,The Insolvency Service,19/12/2014,Agency Workers,BUSINESS SERVICES DIRECTORATE                                                                       ,BROOK STREET (UK) LTD,BA0000282481,367.14,
BIS,The Insolvency Service,19/12/2014,Agency Workers,BUSINESS SERVICES DIRECTORATE                                                                       ,BROOK STREET (UK) LTD,BA0000282481,227.88,
BIS,The Insolvency Service,19/12/2014,Agency Workers,BUSINESS SERVICES DIRECTORATE                                                                       ,BROOK STREET (UK) LTD,BA0000282481,360.37,
BIS,The Insolvency Service,19/12/2014,Agency Workers,BUSINESS SERVICES DIRECTORATE                                                                       ,BROOK STREET (UK) LTD,BA0000282481,373.85,
BIS,The Insolvency Service,19/12/2014,Agency Workers,BUSINESS SERVICES DIRECTORATE                                                                       ,BROOK STREET (UK) LTD,BA0000282481,427.56,
BIS,The Insolvency Service,19/12/2014,Agency Workers,BUSINESS SERVICES DIRECTORATE                                                                       ,BROOK STREET (UK) LTD,BA0000282481,451.99,
BIS,The Insolvency Service,19/12/2014,Agency Workers,BUSINESS SERVICES DIRECTORATE                                                                       ,BROOK STREET (UK) LTD,BA0000282481,369.41,
BIS,The Insolvency Service,19/12/2014,Agency Workers,BUSINESS SERVICES DIRECTORATE                                                                       ,BROOK STREET (UK) LTD,BA0000282481,368.96,
BIS,The Insolvency Service,19/12/2014,Agency Workers,BUSINESS SERVICES DIRECTORATE                                                                       ,BROOK STREET (UK) LTD,BA0000282481,369.41,
BIS,The Insolvency Service,19/12/2014,Agency Workers,BUSINESS SERVICES DIRECTORATE                                                                       ,BROOK STREET (UK) LTD,BA0000282481,523.85,
BIS,The Insolvency Service,19/12/2014,Agency Workers,BUSINESS SERVICES DIRECTORATE                                                                       ,BROOK STREET (UK) LTD,BA0000282481,448.50,
BIS,The Insolvency Service,19/12/2014,Agency Workers,BUSINESS SERVICES DIRECTORATE                                                                       ,BROOK STREET (UK) LTD,BA0000282481,382.50,
BIS,The Insolvency Service,19/12/2014,Agency Workers,BUSINESS SERVICES DIRECTORATE                                                                       ,BROOK STREET (UK) LTD,BA0000282481,537.74,
BIS,The Insolvency Service,19/12/2014,Agency Workers,BUSINESS SERVICES DIRECTORATE                                                                       ,BROOK STREET (UK) LTD,BA0000282481,537.74,
BIS,The Insolvency Service,19/12/2014,Agency Workers,BUSINESS SERVICES DIRECTORATE                                                                       ,BROOK STREET (UK) LTD,BA0000282481,545.66,
BIS,The Insolvency Service,19/12/2014,Agency Workers,BUSINESS SERVICES DIRECTORATE                                                                       ,BROOK STREET (UK) LTD,BA0000282481,537.74,
BIS,The Insolvency Service,19/12/2014,Agency Workers,BUSINESS SERVICES DIRECTORATE                                                                       ,BROOK STREET (UK) LTD,BA0000282481,537.74,
BIS,The Insolvency Service,19/12/2014,Agency Workers,BUSINESS SERVICES DIRECTORATE                                                                       ,BROOK STREET (UK) LTD,BA0000282481,344.45,
BIS,The Insolvency Service,19/12/2014,Agency Workers,BUSINESS SERVICES DIRECTORATE                                                                       ,BROOK STREET (UK) LTD,BA0000282481,379.80,
BIS,The Insolvency Service,19/12/2014,Agency Workers,BUSINESS SERVICES DIRECTORATE                                                                       ,BROOK STREET (UK) LTD,BA0000282481,538.20,
BIS,The Insolvency Service,19/12/2014,Agency Workers,BUSINESS SERVICES DIRECTORATE                                                                       ,BROOK STREET (UK) LTD,BA0000282481,446.32,
BIS,The Insolvency Service,19/12/2014,Agency Workers,BUSINESS SERVICES DIRECTORATE                                                                       ,BROOK STREET (UK) LTD,BA0000282481,530.58,
BIS,The Insolvency Service,19/12/2014,Agency Workers,BUSINESS SERVICES DIRECTORATE                                                                       ,BROOK STREET (UK) LTD,BA0000282481,530.58,
BIS,The Insolvency Service,19/12/2014,Agency Workers,BUSINESS SERVICES DIRECTORATE                                                                       ,BROOK STREET (UK) LTD,BA0000282481,526.14,
BIS,The Insolvency Service,19/12/2014,Agency Workers,BUSINESS SERVICES DIRECTORATE                                                                       ,BROOK STREET (UK) LTD,BA0000282481,448.44,
BIS,The Insolvency Service,19/12/2014,Agency Workers,BUSINESS SERVICES DIRECTORATE                                                                       ,BROOK STREET (UK) LTD,BA0000282481,181.80,
BIS,The Insolvency Service,19/12/2014,Agency Workers,BUSINESS SERVICES DIRECTORATE                                                                       ,BROOK STREET (UK) LTD,BA0000282481,531.02,
BIS,The Insolvency Service,19/12/2014,Agency Workers,BUSINESS SERVICES DIRECTORATE                                                                       ,BROOK STREET (UK) LTD,BA0000282481,526.14,
BIS,The Insolvency Service,19/12/2014,Agency Workers,BUSINESS SERVICES DIRECTORATE                                                                       ,BROOK STREET (UK) LTD,BA0000282481,349.02,
BIS,The Insolvency Service,19/12/2014,Agency Workers,BUSINESS SERVICES DIRECTORATE                                                                       ,BROOK STREET (UK) LTD,BA0000282481,331.56,
BIS,The Insolvency Service,19/12/2014,Agency Workers,BUSINESS SERVICES DIRECTORATE                                                                       ,BROOK STREET (UK) LTD,BA0000282481,426.60,
BIS,The Insolvency Service,19/12/2014,Agency Workers,BUSINESS SERVICES DIRECTORATE                                                                       ,BROOK STREET (UK) LTD,BA0000282481,344.03,
BIS,The Insolvency Service,19/12/2014,Agency Workers,BUSINESS SERVICES DIRECTORATE                                                                       ,BROOK STREET (UK) LTD,BA0000282481,227.88,
BIS,The Insolvency Service,19/12/2014,Agency Workers,BUSINESS SERVICES DIRECTORATE                                                                       ,BROOK STREET (UK) LTD,BA0000282481,531.02,
BIS,The Insolvency Service,19/12/2014,Agency Workers,BUSINESS SERVICES DIRECTORATE                                                                       ,BROOK STREET (UK) LTD,BA0000282481,359.05,
BIS,The Insolvency Service,19/12/2014,Agency Workers,BUSINESS SERVICES DIRECTORATE                                                                       ,BROOK STREET (UK) LTD,BA0000282481,531.02,
BIS,The Insolvency Service,19/12/2014,Agency Workers,BUSINESS SERVICES DIRECTORATE                                                                       ,BROOK STREET (UK) LTD,BA0000282481,375.18,
BIS,The Insolvency Service,19/12/2014,Agency Workers,BUSINESS SERVICES DIRECTORATE                                                                       ,BROOK STREET (UK) LTD,BA0000282484,274.86,
BIS,The Insolvency Service,19/12/2014,Agency Workers,BUSINESS SERVICES DIRECTORATE                                                                       ,BROOK STREET (UK) LTD,BA0000282484,487.97,
BIS,The Insolvency Service,19/12/2014,Agency Workers,BUSINESS SERVICES DIRECTORATE                                                                       ,BROOK STREET (UK) LTD,BA0000282484,452.09,
BIS,The Insolvency Service,19/12/2014,Agency Workers,BUSINESS SERVICES DIRECTORATE                                                                       ,BROOK STREET (UK) LTD,BA0000282484,533.24,
BIS,The Insolvency Service,19/12/2014,Agency Workers,BUSINESS SERVICES DIRECTORATE                                                                       ,BROOK STREET (UK) LTD,BA0000282484,299.52,
BIS,The Insolvency Service,19/12/2014,Agency Workers,BUSINESS SERVICES DIRECTORATE                                                                       ,BROOK STREET (UK) LTD,BA0000282484,426.60,
BIS,The Insolvency Service,19/12/2014,Agency Workers,BUSINESS SERVICES DIRECTORATE                                                                       ,BROOK STREET (UK) LTD,BA0000282484,381.74,
BIS,The Insolvency Service,19/12/2014,Agency Workers,BUSINESS SERVICES DIRECTORATE                                                                       ,BROOK STREET (UK) LTD,BA0000282484,418.80,
BIS,The Insolvency Service,19/12/2014,Agency Workers,BUSINESS SERVICES DIRECTORATE                                                                       ,BROOK STREET (UK) LTD,BA0000282484,443.26,
BIS,The Insolvency Service,19/12/2014,Agency Workers,BUSINESS SERVICES DIRECTORATE                                                                       ,BROOK STREET (UK) LTD,BA0000282484,531.02,
BIS,The Insolvency Service,19/12/2014,Agency Workers,BUSINESS SERVICES DIRECTORATE                                                                       ,BROOK STREET (UK) LTD,BA0000282484,482.44,
BIS,The Insolvency Service,19/12/2014,Agency Workers,BUSINESS SERVICES DIRECTORATE                                                                       ,BROOK STREET (UK) LTD,BA0000282484,476.32,
BIS,The Insolvency Service,19/12/2014,Agency Workers,BUSINESS SERVICES DIRECTORATE                                                                       ,BROOK STREET (UK) LTD,BA0000282484,530.58,
BIS,The Insolvency Service,19/12/2014,Agency Workers,BUSINESS SERVICES DIRECTORATE                                                                       ,BROOK STREET (UK) LTD,BA0000282484,560.58,
BIS,The Insolvency Service,19/12/2014,Agency Workers,BUSINESS SERVICES DIRECTORATE                                                                       ,BROOK STREET (UK) LTD,BA0000282484,256.79,
BIS,The Insolvency Service,19/12/2014,Agency Workers,BUSINESS SERVICES DIRECTORATE                                                                       ,BROOK STREET (UK) LTD,BA0000282484,523.85,
BIS,The Insolvency Service,19/12/2014,Agency Workers,BUSINESS SERVICES DIRECTORATE                                                                       ,BROOK STREET (UK) LTD,BA0000282484,366.48,
BIS,The Insolvency Service,19/12/2014,Agency Workers,BUSINESS SERVICES DIRECTORATE                                                                       ,BROOK STREET (UK) LTD,BA0000282484,308.76,
BIS,The Insolvency Service,19/12/2014,Agency Workers,BUSINESS SERVICES DIRECTORATE                                                                       ,BROOK STREET (UK) LTD,BA0000282484,448.44,
BIS,The Insolvency Service,19/12/2014,Agency Workers,BUSINESS SERVICES DIRECTORATE                                                                       ,BROOK STREET (UK) LTD,BA0000282484,453.38,
BIS,The Insolvency Service,19/12/2014,Agency Workers,BUSINESS SERVICES DIRECTORATE                                                                       ,BROOK STREET (UK) LTD,BA0000282484,460.56,
BIS,The Insolvency Service,19/12/2014,Agency Workers,BUSINESS SERVICES DIRECTORATE                                                                       ,BROOK STREET (UK) LTD,BA0000282484,387.49,
BIS,The Insolvency Service,19/12/2014,Agency Workers,BUSINESS SERVICES DIRECTORATE                                                                       ,BROOK STREET (UK) LTD,BA0000282484,526.14,
BIS,The Insolvency Service,19/12/2014,Agency Workers,BUSINESS SERVICES DIRECTORATE                                                                       ,BROOK STREET (UK) LTD,BA0000282484,315.74,
BIS,The Insolvency Service,19/12/2014,Agency Workers,BUSINESS SERVICES DIRECTORATE                                                                       ,BROOK STREET (UK) LTD,BA0000282484,451.99,
BIS,The Insolvency Service,19/12/2014,Agency Workers,BUSINESS SERVICES DIRECTORATE                                                                       ,BROOK STREET (UK) LTD,BA0000282484,427.56,
BIS,The Insolvency Service,19/12/2014,Agency Workers,BUSINESS SERVICES DIRECTORATE                                                                       ,BROOK STREET (UK) LTD,BA0000282484,375.18,
BIS,The Insolvency Service,19/12/2014,Agency Workers,BUSINESS SERVICES DIRECTORATE                                                                       ,BROOK STREET (UK) LTD,BA0000282484,382.66,
BIS,The Insolvency Service,19/12/2014,Agency Workers,BUSINESS SERVICES DIRECTORATE                                                                       ,BROOK STREET (UK) LTD,BA0000282484,531.02,
BIS,The Insolvency Service,19/12/2014,Agency Workers,BUSINESS SERVICES DIRECTORATE                                                                       ,BROOK STREET (UK) LTD,BA0000282484,464.69,
BIS,The Insolvency Service,19/12/2014,Agency Workers,BUSINESS SERVICES DIRECTORATE                                                                       ,BROOK STREET (UK) LTD,BA0000282484,451.99,
BIS,The Insolvency Service,19/12/2014,Agency Workers,BUSINESS SERVICES DIRECTORATE                                                                       ,BROOK STREET (UK) LTD,BA0000282484,373.85,
BIS,The Insolvency Service,19/12/2014,Agency Workers,BUSINESS SERVICES DIRECTORATE                                                                       ,BROOK STREET (UK) LTD,BA0000282484,451.99,
BIS,The Insolvency Service,19/12/2014,Agency Workers,BUSINESS SERVICES DIRECTORATE                                                                       ,BROOK STREET (UK) LTD,BA0000282484,451.99,
BIS,The Insolvency Service,19/12/2014,Agency Workers,BUSINESS SERVICES DIRECTORATE                                                                       ,BROOK STREET (UK) LTD,BA0000282484,339.46,
BIS,The Insolvency Service,19/12/2014,Agency Workers,BUSINESS SERVICES DIRECTORATE                                                                       ,BROOK STREET (UK) LTD,BA0000282484,368.96,
BIS,The Insolvency Service,19/12/2014,Agency Workers,BUSINESS SERVICES DIRECTORATE                                                                       ,BROOK STREET (UK) LTD,BA0000282484,369.41,
BIS,The Insolvency Service,19/12/2014,Agency Workers,BUSINESS SERVICES DIRECTORATE                                                                       ,BROOK STREET (UK) LTD,BA0000282484,541.78,
BIS,The Insolvency Service,19/12/2014,Agency Workers,BUSINESS SERVICES DIRECTORATE                                                                       ,BROOK STREET (UK) LTD,BA0000282484,541.78,
BIS,The Insolvency Service,19/12/2014,Agency Workers,BUSINESS SERVICES DIRECTORATE                                                                       ,BROOK STREET (UK) LTD,BA0000282484,541.78,
BIS,The Insolvency Service,19/12/2014,Agency Workers,BUSINESS SERVICES DIRECTORATE                                                                       ,BROOK STREET (UK) LTD,BA0000282484,430.20,
BIS,The Insolvency Service,19/12/2014,Agency Workers,BUSINESS SERVICES DIRECTORATE                                                                       ,BROOK STREET (UK) LTD,BA0000282484,460.20,
BIS,The Insolvency Service,19/12/2014,Agency Workers,BUSINESS SERVICES DIRECTORATE                                                                       ,BROOK STREET (UK) LTD,BA0000282484,537.74,
BIS,The Insolvency Service,19/12/2014,Agency Workers,BUSINESS SERVICES DIRECTORATE                                                                       ,BROOK STREET (UK) LTD,BA0000282484,430.20,
BIS,The Insolvency Service,19/12/2014,Agency Workers,BUSINESS SERVICES DIRECTORATE                                                                       ,BROOK STREET (UK) LTD,BA0000282484,537.74,
BIS,The Insolvency Service,19/12/2014,Agency Workers,BUSINESS SERVICES DIRECTORATE                                                                       ,BROOK STREET (UK) LTD,BA0000282484,229.63,
BIS,The Insolvency Service,19/12/2014,Agency Workers,BUSINESS SERVICES DIRECTORATE                                                                       ,BROOK STREET (UK) LTD,BA0000282484,379.80,
BIS,The Insolvency Service,19/12/2014,Agency Workers,BUSINESS SERVICES DIRECTORATE                                                                       ,BROOK STREET (UK) LTD,BA0000282484,538.20,
BIS,The Insolvency Service,19/12/2014,Agency Workers,BUSINESS SERVICES DIRECTORATE                                                                       ,BROOK STREET (UK) LTD,BA0000282484,449.38,
BIS,The Insolvency Service,19/12/2014,Agency Workers,BUSINESS SERVICES DIRECTORATE                                                                       ,BROOK STREET (UK) LTD,BA0000282484,530.58,
BIS,The Insolvency Service,19/12/2014,Agency Workers,BUSINESS SERVICES DIRECTORATE                                                                       ,BROOK STREET (UK) LTD,BA0000282484,530.58,
BIS,The Insolvency Service,19/12/2014,Agency Workers,BUSINESS SERVICES DIRECTORATE                                                                       ,BROOK STREET (UK) LTD,BA0000282484,526.14,
BIS,The Insolvency Service,19/12/2014,Agency Workers,BUSINESS SERVICES DIRECTORATE                                                                       ,BROOK STREET (UK) LTD,BA0000282484,396.92,
BIS,The Insolvency Service,19/12/2014,Agency Workers,BUSINESS SERVICES DIRECTORATE                                                                       ,BROOK STREET (UK) LTD,BA0000282484,172.70,
BIS,The Insolvency Service,19/12/2014,Agency Workers,BUSINESS SERVICES DIRECTORATE                                                                       ,BROOK STREET (UK) LTD,BA0000282484,531.02,
BIS,The Insolvency Service,19/12/2014,Agency Workers,BUSINESS SERVICES DIRECTORATE                                                                       ,BROOK STREET (UK) LTD,BA0000282484,412.38,
BIS,The Insolvency Service,19/12/2014,Agency Workers,BUSINESS SERVICES DIRECTORATE                                                                       ,BROOK STREET (UK) LTD,BA0000282484,368.96,
BIS,The Insolvency Service,19/12/2014,Agency Workers,BUSINESS SERVICES DIRECTORATE                                                                       ,BROOK STREET (UK) LTD,BA0000282484,368.96,
BIS,The Insolvency Service,19/12/2014,Agency Workers,BUSINESS SERVICES DIRECTORATE                                                                       ,BROOK STREET (UK) LTD,BA0000282484,526.14,
BIS,The Insolvency Service,19/12/2014,Agency Workers,BUSINESS SERVICES DIRECTORATE                                                                       ,BROOK STREET (UK) LTD,BA0000282484,368.96,
BIS,The Insolvency Service,19/12/2014,Agency Workers,BUSINESS SERVICES DIRECTORATE                                                                       ,BROOK STREET (UK) LTD,BA0000282484,75.96,
BIS,The Insolvency Service,19/12/2014,Agency Workers,BUSINESS SERVICES DIRECTORATE                                                                       ,BROOK STREET (UK) LTD,BA0000282484,526.14,
BIS,The Insolvency Service,19/12/2014,Agency Workers,BUSINESS SERVICES DIRECTORATE                                                                       ,BROOK STREET (UK) LTD,BA0000282484,375.18,
BIS,The Insolvency Service,19/12/2014,Agency Workers,BUSINESS SERVICES DIRECTORATE                                                                       ,BROOK STREET (UK) LTD,BA0000282484,538.94,
BIS,The Insolvency Service,19/12/2014,Agency Workers,BUSINESS SERVICES DIRECTORATE                                                                       ,BROOK STREET (UK) LTD,BA0000282484,373.90,
BIS,The Insolvency Service,19/12/2014,Agency Workers,BUSINESS SERVICES DIRECTORATE                                                                       ,BROOK STREET (UK) LTD,BA0000282484,156.29,
BIS,The Insolvency Service,19/12/2014,Agency Workers,BUSINESS SERVICES DIRECTORATE                                                                       ,BROOK STREET (UK) LTD,BA0000282484,95.04,
BIS,The Insolvency Service,19/12/2014,Agency Workers,BUSINESS SERVICES DIRECTORATE                                                                       ,BROOK STREET (UK) LTD,BA0000282484,156.29,
BIS,The Insolvency Service,23/12/2014,Agency Workers,BUSINESS SERVICES DIRECTORATE                                                                       ,BROOK STREET (UK) LTD,BA0000282619,274.86,
BIS,The Insolvency Service,23/12/2014,Agency Workers,BUSINESS SERVICES DIRECTORATE                                                                       ,BROOK STREET (UK) LTD,BA0000282619,430.56,
BIS,The Insolvency Service,23/12/2014,Agency Workers,BUSINESS SERVICES DIRECTORATE                                                                       ,BROOK STREET (UK) LTD,BA0000282619,538.20,
BIS,The Insolvency Service,23/12/2014,Agency Workers,BUSINESS SERVICES DIRECTORATE                                                                       ,BROOK STREET (UK) LTD,BA0000282619,533.24,
BIS,The Insolvency Service,23/12/2014,Agency Workers,BUSINESS SERVICES DIRECTORATE                                                                       ,BROOK STREET (UK) LTD,BA0000282619,369.41,
BIS,The Insolvency Service,23/12/2014,Agency Workers,BUSINESS SERVICES DIRECTORATE                                                                       ,BROOK STREET (UK) LTD,BA0000282619,426.60,
BIS,The Insolvency Service,23/12/2014,Agency Workers,BUSINESS SERVICES DIRECTORATE                                                                       ,BROOK STREET (UK) LTD,BA0000282619,415.34,
BIS,The Insolvency Service,23/12/2014,Agency Workers,BUSINESS SERVICES DIRECTORATE                                                                       ,BROOK STREET (UK) LTD,BA0000282619,445.75,
BIS,The Insolvency Service,23/12/2014,Agency Workers,BUSINESS SERVICES DIRECTORATE                                                                       ,BROOK STREET (UK) LTD,BA0000282619,464.09,
BIS,The Insolvency Service,23/12/2014,Agency Workers,BUSINESS SERVICES DIRECTORATE                                                                       ,BROOK STREET (UK) LTD,BA0000282619,557.44,
BIS,The Insolvency Service,23/12/2014,Agency Workers,BUSINESS SERVICES DIRECTORATE                                                                       ,BROOK STREET (UK) LTD,BA0000282619,452.44,
BIS,The Insolvency Service,23/12/2014,Agency Workers,BUSINESS SERVICES DIRECTORATE                                                                       ,BROOK STREET (UK) LTD,BA0000282619,262.90,
BIS,The Insolvency Service,23/12/2014,Agency Workers,BUSINESS SERVICES DIRECTORATE                                                                       ,BROOK STREET (UK) LTD,BA0000282619,560.58,
BIS,The Insolvency Service,23/12/2014,Agency Workers,BUSINESS SERVICES DIRECTORATE                                                                       ,BROOK STREET (UK) LTD,BA0000282619,530.58,
BIS,The Insolvency Service,23/12/2014,Agency Workers,BUSINESS SERVICES DIRECTORATE                                                                       ,BROOK STREET (UK) LTD,BA0000282619,454.92,
BIS,The Insolvency Service,23/12/2014,Agency Workers,BUSINESS SERVICES DIRECTORATE                                                                       ,BROOK STREET (UK) LTD,BA0000282619,424.68,
BIS,The Insolvency Service,23/12/2014,Agency Workers,BUSINESS SERVICES DIRECTORATE                                                                       ,BROOK STREET (UK) LTD,BA0000282619,481.99,
BIS,The Insolvency Service,23/12/2014,Agency Workers,BUSINESS SERVICES DIRECTORATE                                                                       ,BROOK STREET (UK) LTD,BA0000282619,393.90,
BIS,The Insolvency Service,23/12/2014,Agency Workers,BUSINESS SERVICES DIRECTORATE                                                                       ,BROOK STREET (UK) LTD,BA0000282619,384.50,
BIS,The Insolvency Service,23/12/2014,Agency Workers,BUSINESS SERVICES DIRECTORATE                                                                       ,BROOK STREET (UK) LTD,BA0000282619,531.02,
BIS,The Insolvency Service,23/12/2014,Agency Workers,BUSINESS SERVICES DIRECTORATE                                                                       ,BROOK STREET (UK) LTD,BA0000282619,502.32,
BIS,The Insolvency Service,23/12/2014,Agency Workers,BUSINESS SERVICES DIRECTORATE                                                                       ,BROOK STREET (UK) LTD,BA0000282619,465.70,
BIS,The Insolvency Service,23/12/2014,Agency Workers,BUSINESS SERVICES DIRECTORATE                                                                       ,BROOK STREET (UK) LTD,BA0000282619,556.14,
BIS,The Insolvency Service,23/12/2014,Agency Workers,BUSINESS SERVICES DIRECTORATE                                                                       ,BROOK STREET (UK) LTD,BA0000282619,531.02,
BIS,The Insolvency Service,23/12/2014,Agency Workers,BUSINESS SERVICES DIRECTORATE                                                                       ,BROOK STREET (UK) LTD,BA0000282619,61.08,
BIS,The Insolvency Service,23/12/2014,Agency Workers,BUSINESS SERVICES DIRECTORATE                                                                       ,BROOK STREET (UK) LTD,BA0000282619,366.48,
BIS,The Insolvency Service,23/12/2014,Agency Workers,BUSINESS SERVICES DIRECTORATE                                                                       ,BROOK STREET (UK) LTD,BA0000282619,531.02,
BIS,The Insolvency Service,23/12/2014,Agency Workers,BUSINESS SERVICES DIRECTORATE                                                                       ,BROOK STREET (UK) LTD,BA0000282619,306.37,
BIS,The Insolvency Service,23/12/2014,Agency Workers,BUSINESS SERVICES DIRECTORATE                                                                       ,BROOK STREET (UK) LTD,BA0000282619,531.02,
BIS,The Insolvency Service,23/12/2014,Agency Workers,BUSINESS SERVICES DIRECTORATE                                                                       ,BROOK STREET (UK) LTD,BA0000282619,369.41,
BIS,The Insolvency Service,23/12/2014,Agency Workers,BUSINESS SERVICES DIRECTORATE                                                                       ,BROOK STREET (UK) LTD,BA0000282619,172.70,
BIS,The Insolvency Service,23/12/2014,Agency Workers,BUSINESS SERVICES DIRECTORATE                                                                       ,BROOK STREET (UK) LTD,BA0000282619,274.86,
BIS,The Insolvency Service,23/12/2014,Agency Workers,BUSINESS SERVICES DIRECTORATE                                                                       ,BROOK STREET (UK) LTD,BA0000282619,448.00,
BIS,The Insolvency Service,23/12/2014,Agency Workers,BUSINESS SERVICES DIRECTORATE                                                                       ,BROOK STREET (UK) LTD,BA0000282619,342.05,
BIS,The Insolvency Service,23/12/2014,Agency Workers,BUSINESS SERVICES DIRECTORATE                                                                       ,BROOK STREET (UK) LTD,BA0000282619,451.99,
BIS,The Insolvency Service,23/12/2014,Agency Workers,BUSINESS SERVICES DIRECTORATE                                                                       ,BROOK STREET (UK) LTD,BA0000282619,369.41,
BIS,The Insolvency Service,23/12/2014,Agency Workers,BUSINESS SERVICES DIRECTORATE                                                                       ,BROOK STREET (UK) LTD,BA0000282619,368.96,
BIS,The Insolvency Service,23/12/2014,Agency Workers,BUSINESS SERVICES DIRECTORATE                                                                       ,BROOK STREET (UK) LTD,BA0000282619,369.41,
BIS,The Insolvency Service,23/12/2014,Agency Workers,BUSINESS SERVICES DIRECTORATE                                                                       ,BROOK STREET (UK) LTD,BA0000282619,541.78,
BIS,The Insolvency Service,23/12/2014,Agency Workers,BUSINESS SERVICES DIRECTORATE                                                                       ,BROOK STREET (UK) LTD,BA0000282619,505.91,
BIS,The Insolvency Service,23/12/2014,Agency Workers,BUSINESS SERVICES DIRECTORATE                                                                       ,BROOK STREET (UK) LTD,BA0000282619,322.92,
BIS,The Insolvency Service,23/12/2014,Agency Workers,BUSINESS SERVICES DIRECTORATE                                                                       ,BROOK STREET (UK) LTD,BA0000282619,537.74,
BIS,The Insolvency Service,23/12/2014,Agency Workers,BUSINESS SERVICES DIRECTORATE                                                                       ,BROOK STREET (UK) LTD,BA0000282619,537.74,
BIS,The Insolvency Service,23/12/2014,Agency Workers,BUSINESS SERVICES DIRECTORATE                                                                       ,BROOK STREET (UK) LTD,BA0000282619,567.74,
BIS,The Insolvency Service,23/12/2014,Agency Workers,BUSINESS SERVICES DIRECTORATE                                                                       ,BROOK STREET (UK) LTD,BA0000282619,567.74,
BIS,The Insolvency Service,23/12/2014,Agency Workers,BUSINESS SERVICES DIRECTORATE                                                                       ,BROOK STREET (UK) LTD,BA0000282619,352.64,
BIS,The Insolvency Service,23/12/2014,Agency Workers,BUSINESS SERVICES DIRECTORATE                                                                       ,BROOK STREET (UK) LTD,BA0000282619,459.26,
BIS,The Insolvency Service,23/12/2014,Agency Workers,BUSINESS SERVICES DIRECTORATE                                                                       ,BROOK STREET (UK) LTD,BA0000282619,379.80,
BIS,The Insolvency Service,23/12/2014,Agency Workers,BUSINESS SERVICES DIRECTORATE                                                                       ,BROOK STREET (UK) LTD,BA0000282619,452.44,
BIS,The Insolvency Service,23/12/2014,Agency Workers,BUSINESS SERVICES DIRECTORATE                                                                       ,BROOK STREET (UK) LTD,BA0000282619,512.65,
BIS,The Insolvency Service,23/12/2014,Agency Workers,BUSINESS SERVICES DIRECTORATE                                                                       ,BROOK STREET (UK) LTD,BA0000282619,560.58,
BIS,The Insolvency Service,23/12/2014,Agency Workers,BUSINESS SERVICES DIRECTORATE                                                                       ,BROOK STREET (UK) LTD,BA0000282619,534.06,
BIS,The Insolvency Service,23/12/2014,Agency Workers,BUSINESS SERVICES DIRECTORATE                                                                       ,BROOK STREET (UK) LTD,BA0000282619,362.42,
BIS,The Insolvency Service,23/12/2014,Agency Workers,BUSINESS SERVICES DIRECTORATE                                                                       ,BROOK STREET (UK) LTD,BA0000282619,181.80,
BIS,The Insolvency Service,23/12/2014,Agency Workers,BUSINESS SERVICES DIRECTORATE                                                                       ,BROOK STREET (UK) LTD,BA0000282619,531.02,
BIS,The Insolvency Service,23/12/2014,Agency Workers,BUSINESS SERVICES DIRECTORATE                                                                       ,BROOK STREET (UK) LTD,BA0000282619,511.92,
BIS,The Insolvency Service,23/12/2014,Agency Workers,BUSINESS SERVICES DIRECTORATE                                                                       ,BROOK STREET (UK) LTD,BA0000282619,299.16,
BIS,The Insolvency Service,23/12/2014,Agency Workers,BUSINESS SERVICES DIRECTORATE                                                                       ,BROOK STREET (UK) LTD,BA0000282619,358.99,
BIS,The Insolvency Service,23/12/2014,Agency Workers,BUSINESS SERVICES DIRECTORATE                                                                       ,BROOK STREET (UK) LTD,BA0000282619,526.14,
BIS,The Insolvency Service,23/12/2014,Agency Workers,BUSINESS SERVICES DIRECTORATE                                                                       ,BROOK STREET (UK) LTD,BA0000282619,354.00,
BIS,The Insolvency Service,23/12/2014,Agency Workers,BUSINESS SERVICES DIRECTORATE                                                                       ,BROOK STREET (UK) LTD,BA0000282619,526.14,
BIS,The Insolvency Service,23/12/2014,Agency Workers,BUSINESS SERVICES DIRECTORATE                                                                       ,BROOK STREET (UK) LTD,BA0000282619,556.14,
BIS,The Insolvency Service,23/12/2014,Agency Workers,BUSINESS SERVICES DIRECTORATE                                                                       ,BROOK STREET (UK) LTD,BA0000282619,375.18,
BIS,The Insolvency Service,23/12/2014,Agency Workers,BUSINESS SERVICES DIRECTORATE                                                                       ,BROOK STREET (UK) LTD,BA0000282619,460.56,
BIS,The Insolvency Service,23/12/2014,Agency Workers,BUSINESS SERVICES DIRECTORATE                                                                       ,BROOK STREET (UK) LTD,BA0000282619,561.02,
BIS,The Insolvency Service,19/12/2014,Agency Workers,INFORMATION TECHNOLOGY                                                                              ,BROOK STREET (UK) LTD,BA0000282481,440.21,
BIS,The Insolvency Service,19/12/2014,Agency Workers,INFORMATION TECHNOLOGY                                                                              ,BROOK STREET (UK) LTD,BA0000282481,366.84,
BIS,The Insolvency Service,19/12/2014,Agency Workers,INFORMATION TECHNOLOGY                                                                              ,BROOK STREET (UK) LTD,BA0000282481,91.70,
BIS,The Insolvency Service,19/12/2014,Agency Workers,INFORMATION TECHNOLOGY                                                                              ,BROOK STREET (UK) LTD,BA0000282481,329.82,
BIS,The Insolvency Service,19/12/2014,Agency Workers,INFORMATION TECHNOLOGY                                                                              ,BROOK STREET (UK) LTD,BA0000282481,388.24,
BIS,The Insolvency Service,19/12/2014,Agency Workers,INFORMATION TECHNOLOGY                                                                              ,BROOK STREET (UK) LTD,BA0000282481,448.00,
BIS,The Insolvency Service,19/12/2014,Agency Workers,INFORMATION TECHNOLOGY                                                                              ,BROOK STREET (UK) LTD,BA0000282481,409.24,
BIS,The Insolvency Service,19/12/2014,Agency Workers,INFORMATION TECHNOLOGY                                                                              ,BROOK STREET (UK) LTD,BA0000282481,448.44,
BIS,The Insolvency Service,19/12/2014,Agency Workers,INFORMATION TECHNOLOGY                                                                              ,BROOK STREET (UK) LTD,BA0000282481,879.84,
BIS,The Insolvency Service,19/12/2014,Agency Workers,INFORMATION TECHNOLOGY                                                                              ,BROOK STREET (UK) LTD,BA0000282481,"1,025.82",
BIS,The Insolvency Service,19/12/2014,Agency Workers,INFORMATION TECHNOLOGY                                                                              ,BROOK STREET (UK) LTD,BA0000282481,366.48,
BIS,The Insolvency Service,19/12/2014,Agency Workers,INFORMATION TECHNOLOGY                                                                              ,BROOK STREET (UK) LTD,BA0000282481,430.14,
BIS,The Insolvency Service,19/12/2014,Agency Workers,INFORMATION TECHNOLOGY                                                                              ,BROOK STREET (UK) LTD,BA0000282481,522.58,
BIS,The Insolvency Service,19/12/2014,Agency Workers,INFORMATION TECHNOLOGY                                                                              ,BROOK STREET (UK) LTD,BA0000282481,368.96,
BIS,The Insolvency Service,19/12/2014,Agency Workers,INFORMATION TECHNOLOGY                                                                              ,BROOK STREET (UK) LTD,BA0000282481,369.41,
BIS,The Insolvency Service,19/12/2014,Agency Workers,INFORMATION TECHNOLOGY                                                                              ,BROOK STREET (UK) LTD,BA0000282481,354.43,
BIS,The Insolvency Service,19/12/2014,Agency Workers,INFORMATION TECHNOLOGY                                                                              ,BROOK STREET (UK) LTD,BA0000282481,364.42,
BIS,The Insolvency Service,19/12/2014,Agency Workers,INFORMATION TECHNOLOGY                                                                              ,BROOK STREET (UK) LTD,BA0000282484,366.84,
BIS,The Insolvency Service,19/12/2014,Agency Workers,INFORMATION TECHNOLOGY                                                                              ,BROOK STREET (UK) LTD,BA0000282484,390.72,
BIS,The Insolvency Service,19/12/2014,Agency Workers,INFORMATION TECHNOLOGY                                                                              ,BROOK STREET (UK) LTD,BA0000282484,438.12,
BIS,The Insolvency Service,19/12/2014,Agency Workers,INFORMATION TECHNOLOGY                                                                              ,BROOK STREET (UK) LTD,BA0000282484,354.61,
BIS,The Insolvency Service,19/12/2014,Agency Workers,INFORMATION TECHNOLOGY                                                                              ,BROOK STREET (UK) LTD,BA0000282484,448.00,
BIS,The Insolvency Service,19/12/2014,Agency Workers,INFORMATION TECHNOLOGY                                                                              ,BROOK STREET (UK) LTD,BA0000282484,451.99,
BIS,The Insolvency Service,19/12/2014,Agency Workers,INFORMATION TECHNOLOGY                                                                              ,BROOK STREET (UK) LTD,BA0000282484,448.44,
BIS,The Insolvency Service,19/12/2014,Agency Workers,INFORMATION TECHNOLOGY                                                                              ,BROOK STREET (UK) LTD,BA0000282484,879.84,
BIS,The Insolvency Service,19/12/2014,Agency Workers,INFORMATION TECHNOLOGY                                                                              ,BROOK STREET (UK) LTD,BA0000282484,"1,047.90",
BIS,The Insolvency Service,19/12/2014,Agency Workers,INFORMATION TECHNOLOGY                                                                              ,BROOK STREET (UK) LTD,BA0000282484,459.91,
BIS,The Insolvency Service,19/12/2014,Agency Workers,INFORMATION TECHNOLOGY                                                                              ,BROOK STREET (UK) LTD,BA0000282484,423.72,
BIS,The Insolvency Service,19/12/2014,Agency Workers,INFORMATION TECHNOLOGY                                                                              ,BROOK STREET (UK) LTD,BA0000282484,483.48,
BIS,The Insolvency Service,19/12/2014,Agency Workers,INFORMATION TECHNOLOGY                                                                              ,BROOK STREET (UK) LTD,BA0000282484,149.58,
BIS,The Insolvency Service,19/12/2014,Agency Workers,INFORMATION TECHNOLOGY                                                                              ,BROOK STREET (UK) LTD,BA0000282484,369.41,
BIS,The Insolvency Service,19/12/2014,Agency Workers,INFORMATION TECHNOLOGY                                                                              ,BROOK STREET (UK) LTD,BA0000282484,354.43,
BIS,The Insolvency Service,19/12/2014,Agency Workers,INFORMATION TECHNOLOGY                                                                              ,BROOK STREET (UK) LTD,BA0000282484,334.46,
BIS,The Insolvency Service,23/12/2014,Agency Workers,INFORMATION TECHNOLOGY                                                                              ,BROOK STREET (UK) LTD,BA0000282619,427.40,
BIS,The Insolvency Service,23/12/2014,Agency Workers,INFORMATION TECHNOLOGY                                                                              ,BROOK STREET (UK) LTD,BA0000282619,342.38,
BIS,The Insolvency Service,23/12/2014,Agency Workers,INFORMATION TECHNOLOGY                                                                              ,BROOK STREET (UK) LTD,BA0000282619,530.58,
BIS,The Insolvency Service,23/12/2014,Agency Workers,INFORMATION TECHNOLOGY                                                                              ,BROOK STREET (UK) LTD,BA0000282619,396.84,
BIS,The Insolvency Service,23/12/2014,Agency Workers,INFORMATION TECHNOLOGY                                                                              ,BROOK STREET (UK) LTD,BA0000282619,478.00,
BIS,The Insolvency Service,23/12/2014,Agency Workers,INFORMATION TECHNOLOGY                                                                              ,BROOK STREET (UK) LTD,BA0000282619,463.67,
BIS,The Insolvency Service,23/12/2014,Agency Workers,INFORMATION TECHNOLOGY                                                                              ,BROOK STREET (UK) LTD,BA0000282619,879.84,
BIS,The Insolvency Service,23/12/2014,Agency Workers,INFORMATION TECHNOLOGY                                                                              ,BROOK STREET (UK) LTD,BA0000282619,"1,017.90",
BIS,The Insolvency Service,23/12/2014,Agency Workers,INFORMATION TECHNOLOGY                                                                              ,BROOK STREET (UK) LTD,BA0000282619,481.99,
BIS,The Insolvency Service,23/12/2014,Agency Workers,INFORMATION TECHNOLOGY                                                                              ,BROOK STREET (UK) LTD,BA0000282619,318.90,
BIS,The Insolvency Service,23/12/2014,Agency Workers,INFORMATION TECHNOLOGY                                                                              ,BROOK STREET (UK) LTD,BA0000282619,236.18,
BIS,The Insolvency Service,23/12/2014,Agency Workers,INFORMATION TECHNOLOGY                                                                              ,BROOK STREET (UK) LTD,BA0000282619,368.96,
BIS,The Insolvency Service,23/12/2014,Agency Workers,INFORMATION TECHNOLOGY                                                                              ,BROOK STREET (UK) LTD,BA0000282619,369.41,
BIS,The Insolvency Service,23/12/2014,Agency Workers,INFORMATION TECHNOLOGY                                                                              ,BROOK STREET (UK) LTD,BA0000282619,359.42,
BIS,The Insolvency Service,23/12/2014,Agency Workers,INFORMATION TECHNOLOGY                                                                              ,BROOK STREET (UK) LTD,BA0000282619,369.41,
BIS,The Insolvency Service,19/12/2014,Agency Workers,INVESTIGATIONS & ENFORCEMENT                                                                        ,BROOK STREET (UK) LTD,BA0000282481,"1,045.00",
BIS,The Insolvency Service,19/12/2014,Agency Workers,INVESTIGATIONS & ENFORCEMENT                                                                        ,BROOK STREET (UK) LTD,BA0000282481,"1,214.40",
BIS,The Insolvency Service,19/12/2014,Agency Workers,INVESTIGATIONS & ENFORCEMENT                                                                        ,BROOK STREET (UK) LTD,BA0000282481,"1,098.64",
BIS,The Insolvency Service,19/12/2014,Agency Workers,INVESTIGATIONS & ENFORCEMENT                                                                        ,BROOK STREET (UK) LTD,BA0000282481,"1,071.84",
BIS,The Insolvency Service,19/12/2014,Agency Workers,INVESTIGATIONS & ENFORCEMENT                                                                        ,BROOK STREET (UK) LTD,BA0000282481,770.34,
BIS,The Insolvency Service,19/12/2014,Agency Workers,INVESTIGATIONS & ENFORCEMENT                                                                        ,BROOK STREET (UK) LTD,BA0000282481,331.56,
BIS,The Insolvency Service,19/12/2014,Agency Workers,INVESTIGATIONS & ENFORCEMENT                                                                        ,BROOK STREET (UK) LTD,BA0000282481,195.65,
BIS,The Insolvency Service,19/12/2014,Agency Workers,INVESTIGATIONS & ENFORCEMENT                                                                        ,BROOK STREET (UK) LTD,BA0000282481,530.58,
BIS,The Insolvency Service,19/12/2014,Agency Workers,INVESTIGATIONS & ENFORCEMENT                                                                        ,BROOK STREET (UK) LTD,BA0000282481,"1,017.58",
BIS,The Insolvency Service,19/12/2014,Agency Workers,INVESTIGATIONS & ENFORCEMENT                                                                        ,BROOK STREET (UK) LTD,BA0000282481,"1,004.33",
BIS,The Insolvency Service,19/12/2014,Agency Workers,INVESTIGATIONS & ENFORCEMENT                                                                        ,BROOK STREET (UK) LTD,BA0000282481,107.54,
BIS,The Insolvency Service,19/12/2014,Agency Workers,INVESTIGATIONS & ENFORCEMENT                                                                        ,BROOK STREET (UK) LTD,BA0000282481,770.34,
BIS,The Insolvency Service,19/12/2014,Agency Workers,INVESTIGATIONS & ENFORCEMENT                                                                        ,BROOK STREET (UK) LTD,BA0000282481,801.18,
BIS,The Insolvency Service,19/12/2014,Agency Workers,INVESTIGATIONS & ENFORCEMENT                                                                        ,BROOK STREET (UK) LTD,BA0000282481,390.38,
BIS,The Insolvency Service,19/12/2014,Agency Workers,INVESTIGATIONS & ENFORCEMENT                                                                        ,BROOK STREET (UK) LTD,BA0000282481,616.31,
BIS,The Insolvency Service,19/12/2014,Agency Workers,INVESTIGATIONS & ENFORCEMENT                                                                        ,BROOK STREET (UK) LTD,BA0000282481,"1,009.66",
BIS,The Insolvency Service,19/12/2014,Agency Workers,INVESTIGATIONS & ENFORCEMENT                                                                        ,BROOK STREET (UK) LTD,BA0000282481,204.66,
BIS,The Insolvency Service,19/12/2014,Agency Workers,INVESTIGATIONS & ENFORCEMENT                                                                        ,BROOK STREET (UK) LTD,BA0000282484,992.38,
BIS,The Insolvency Service,19/12/2014,Agency Workers,INVESTIGATIONS & ENFORCEMENT                                                                        ,BROOK STREET (UK) LTD,BA0000282484,"1,191.62",
BIS,The Insolvency Service,19/12/2014,Agency Workers,INVESTIGATIONS & ENFORCEMENT                                                                        ,BROOK STREET (UK) LTD,BA0000282484,"1,071.84",
BIS,The Insolvency Service,19/12/2014,Agency Workers,INVESTIGATIONS & ENFORCEMENT                                                                        ,BROOK STREET (UK) LTD,BA0000282484,"1,098.64",
BIS,The Insolvency Service,19/12/2014,Agency Workers,INVESTIGATIONS & ENFORCEMENT                                                                        ,BROOK STREET (UK) LTD,BA0000282484,770.34,
BIS,The Insolvency Service,19/12/2014,Agency Workers,INVESTIGATIONS & ENFORCEMENT                                                                        ,BROOK STREET (UK) LTD,BA0000282484,368.96,
BIS,The Insolvency Service,19/12/2014,Agency Workers,INVESTIGATIONS & ENFORCEMENT                                                                        ,BROOK STREET (UK) LTD,BA0000282484,482.44,
BIS,The Insolvency Service,19/12/2014,Agency Workers,INVESTIGATIONS & ENFORCEMENT                                                                        ,BROOK STREET (UK) LTD,BA0000282484,322.64,
BIS,The Insolvency Service,19/12/2014,Agency Workers,INVESTIGATIONS & ENFORCEMENT                                                                        ,BROOK STREET (UK) LTD,BA0000282484,"1,009.66",
BIS,The Insolvency Service,19/12/2014,Agency Workers,INVESTIGATIONS & ENFORCEMENT                                                                        ,BROOK STREET (UK) LTD,BA0000282484,"1,012.25",
BIS,The Insolvency Service,19/12/2014,Agency Workers,INVESTIGATIONS & ENFORCEMENT                                                                        ,BROOK STREET (UK) LTD,BA0000282484,530.58,
BIS,The Insolvency Service,19/12/2014,Agency Workers,INVESTIGATIONS & ENFORCEMENT                                                                        ,BROOK STREET (UK) LTD,BA0000282484,770.34,
BIS,The Insolvency Service,19/12/2014,Agency Workers,INVESTIGATIONS & ENFORCEMENT                                                                        ,BROOK STREET (UK) LTD,BA0000282484,"1,029.37",
BIS,The Insolvency Service,19/12/2014,Agency Workers,INVESTIGATIONS & ENFORCEMENT                                                                        ,BROOK STREET (UK) LTD,BA0000282484,770.34,
BIS,The Insolvency Service,19/12/2014,Agency Workers,INVESTIGATIONS & ENFORCEMENT                                                                        ,BROOK STREET (UK) LTD,BA0000282484,309.26,
BIS,The Insolvency Service,19/12/2014,Agency Workers,INVESTIGATIONS & ENFORCEMENT                                                                        ,BROOK STREET (UK) LTD,BA0000282484,911.06,
BIS,The Insolvency Service,19/12/2014,Agency Workers,INVESTIGATIONS & ENFORCEMENT                                                                        ,BROOK STREET (UK) LTD,BA0000282484,245.59,
BIS,The Insolvency Service,19/12/2014,Agency Workers,INVESTIGATIONS & ENFORCEMENT                                                                        ,BROOK STREET (UK) LTD,BA0000282484,41.64,
BIS,The Insolvency Service,23/12/2014,Agency Workers,INVESTIGATIONS & ENFORCEMENT                                                                        ,BROOK STREET (UK) LTD,BA0000282619,"1,045.00",
BIS,The Insolvency Service,23/12/2014,Agency Workers,INVESTIGATIONS & ENFORCEMENT                                                                        ,BROOK STREET (UK) LTD,BA0000282619,"1,229.58",
BIS,The Insolvency Service,23/12/2014,Agency Workers,INVESTIGATIONS & ENFORCEMENT                                                                        ,BROOK STREET (UK) LTD,BA0000282619,"1,078.54",
BIS,The Insolvency Service,23/12/2014,Agency Workers,INVESTIGATIONS & ENFORCEMENT                                                                        ,BROOK STREET (UK) LTD,BA0000282619,877.56,
BIS,The Insolvency Service,23/12/2014,Agency Workers,INVESTIGATIONS & ENFORCEMENT                                                                        ,BROOK STREET (UK) LTD,BA0000282619,770.34,
BIS,The Insolvency Service,23/12/2014,Agency Workers,INVESTIGATIONS & ENFORCEMENT                                                                        ,BROOK STREET (UK) LTD,BA0000282619,368.96,
BIS,The Insolvency Service,23/12/2014,Agency Workers,INVESTIGATIONS & ENFORCEMENT                                                                        ,BROOK STREET (UK) LTD,BA0000282619,452.44,
BIS,The Insolvency Service,23/12/2014,Agency Workers,INVESTIGATIONS & ENFORCEMENT                                                                        ,BROOK STREET (UK) LTD,BA0000282619,"1,039.66",
BIS,The Insolvency Service,23/12/2014,Agency Workers,INVESTIGATIONS & ENFORCEMENT                                                                        ,BROOK STREET (UK) LTD,BA0000282619,827.89,
BIS,The Insolvency Service,23/12/2014,Agency Workers,INVESTIGATIONS & ENFORCEMENT                                                                        ,BROOK STREET (UK) LTD,BA0000282619,560.58,
BIS,The Insolvency Service,23/12/2014,Agency Workers,INVESTIGATIONS & ENFORCEMENT                                                                        ,BROOK STREET (UK) LTD,BA0000282619,770.34,
BIS,The Insolvency Service,23/12/2014,Agency Workers,INVESTIGATIONS & ENFORCEMENT                                                                        ,BROOK STREET (UK) LTD,BA0000282619,991.45,
BIS,The Insolvency Service,23/12/2014,Agency Workers,INVESTIGATIONS & ENFORCEMENT                                                                        ,BROOK STREET (UK) LTD,BA0000282619,770.34,
BIS,The Insolvency Service,23/12/2014,Agency Workers,INVESTIGATIONS & ENFORCEMENT                                                                        ,BROOK STREET (UK) LTD,BA0000282619,380.24,
BIS,The Insolvency Service,23/12/2014,Agency Workers,INVESTIGATIONS & ENFORCEMENT                                                                        ,BROOK STREET (UK) LTD,BA0000282619,616.31,
BIS,The Insolvency Service,19/12/2014,Agency Workers,OFFICIAL RECEIVER SERVICES                                                                          ,BROOK STREET (UK) LTD,BA0000282481,369.41,
BIS,The Insolvency Service,19/12/2014,Agency Workers,OFFICIAL RECEIVER SERVICES                                                                          ,BROOK STREET (UK) LTD,BA0000282481,299.52,
BIS,The Insolvency Service,19/12/2014,Agency Workers,OFFICIAL RECEIVER SERVICES                                                                          ,BROOK STREET (UK) LTD,BA0000282481,454.50,
BIS,The Insolvency Service,19/12/2014,Agency Workers,OFFICIAL RECEIVER SERVICES                                                                          ,BROOK STREET (UK) LTD,BA0000282481,320.98,
BIS,The Insolvency Service,19/12/2014,Agency Workers,OFFICIAL RECEIVER SERVICES                                                                          ,BROOK STREET (UK) LTD,BA0000282481,363.60,
BIS,The Insolvency Service,19/12/2014,Agency Workers,OFFICIAL RECEIVER SERVICES                                                                          ,BROOK STREET (UK) LTD,BA0000282481,379.62,
BIS,The Insolvency Service,19/12/2014,Agency Workers,OFFICIAL RECEIVER SERVICES                                                                          ,BROOK STREET (UK) LTD,BA0000282481,161.59,
BIS,The Insolvency Service,19/12/2014,Agency Workers,OFFICIAL RECEIVER SERVICES                                                                          ,BROOK STREET (UK) LTD,BA0000282481,371.45,
BIS,The Insolvency Service,19/12/2014,Agency Workers,OFFICIAL RECEIVER SERVICES                                                                          ,BROOK STREET (UK) LTD,BA0000282481,373.94,
BIS,The Insolvency Service,19/12/2014,Agency Workers,OFFICIAL RECEIVER SERVICES                                                                          ,BROOK STREET (UK) LTD,BA0000282481,375.18,
BIS,The Insolvency Service,19/12/2014,Agency Workers,OFFICIAL RECEIVER SERVICES                                                                          ,BROOK STREET (UK) LTD,BA0000282481,274.86,
BIS,The Insolvency Service,19/12/2014,Agency Workers,OFFICIAL RECEIVER SERVICES                                                                          ,BROOK STREET (UK) LTD,BA0000282481,538.20,
BIS,The Insolvency Service,19/12/2014,Agency Workers,OFFICIAL RECEIVER SERVICES                                                                          ,BROOK STREET (UK) LTD,BA0000282481,379.80,
BIS,The Insolvency Service,19/12/2014,Agency Workers,OFFICIAL RECEIVER SERVICES                                                                          ,BROOK STREET (UK) LTD,BA0000282481,538.20,
BIS,The Insolvency Service,19/12/2014,Agency Workers,OFFICIAL RECEIVER SERVICES                                                                          ,BROOK STREET (UK) LTD,BA0000282481,446.32,
BIS,The Insolvency Service,19/12/2014,Agency Workers,OFFICIAL RECEIVER SERVICES                                                                          ,BROOK STREET (UK) LTD,BA0000282481,199.68,
BIS,The Insolvency Service,19/12/2014,Agency Workers,OFFICIAL RECEIVER SERVICES                                                                          ,BROOK STREET (UK) LTD,BA0000282481,381.42,
BIS,The Insolvency Service,19/12/2014,Agency Workers,OFFICIAL RECEIVER SERVICES                                                                          ,BROOK STREET (UK) LTD,BA0000282481,374.40,
BIS,The Insolvency Service,19/12/2014,Agency Workers,OFFICIAL RECEIVER SERVICES                                                                          ,BROOK STREET (UK) LTD,BA0000282484,369.41,
BIS,The Insolvency Service,19/12/2014,Agency Workers,OFFICIAL RECEIVER SERVICES                                                                          ,BROOK STREET (UK) LTD,BA0000282484,364.42,
BIS,The Insolvency Service,19/12/2014,Agency Workers,OFFICIAL RECEIVER SERVICES                                                                          ,BROOK STREET (UK) LTD,BA0000282484,488.10,
BIS,The Insolvency Service,19/12/2014,Agency Workers,OFFICIAL RECEIVER SERVICES                                                                          ,BROOK STREET (UK) LTD,BA0000282484,374.76,
BIS,The Insolvency Service,19/12/2014,Agency Workers,OFFICIAL RECEIVER SERVICES                                                                          ,BROOK STREET (UK) LTD,BA0000282484,462.42,
BIS,The Insolvency Service,19/12/2014,Agency Workers,OFFICIAL RECEIVER SERVICES                                                                          ,BROOK STREET (UK) LTD,BA0000282484,379.62,
BIS,The Insolvency Service,19/12/2014,Agency Workers,OFFICIAL RECEIVER SERVICES                                                                          ,BROOK STREET (UK) LTD,BA0000282484,230.84,
BIS,The Insolvency Service,19/12/2014,Agency Workers,OFFICIAL RECEIVER SERVICES                                                                          ,BROOK STREET (UK) LTD,BA0000282484,368.96,
BIS,The Insolvency Service,19/12/2014,Agency Workers,OFFICIAL RECEIVER SERVICES                                                                          ,BROOK STREET (UK) LTD,BA0000282484,373.94,
BIS,The Insolvency Service,19/12/2014,Agency Workers,OFFICIAL RECEIVER SERVICES                                                                          ,BROOK STREET (UK) LTD,BA0000282484,375.18,
BIS,The Insolvency Service,19/12/2014,Agency Workers,OFFICIAL RECEIVER SERVICES                                                                          ,BROOK STREET (UK) LTD,BA0000282484,458.10,
BIS,The Insolvency Service,19/12/2014,Agency Workers,OFFICIAL RECEIVER SERVICES                                                                          ,BROOK STREET (UK) LTD,BA0000282484,430.56,
BIS,The Insolvency Service,19/12/2014,Agency Workers,OFFICIAL RECEIVER SERVICES                                                                          ,BROOK STREET (UK) LTD,BA0000282484,538.20,
BIS,The Insolvency Service,19/12/2014,Agency Workers,OFFICIAL RECEIVER SERVICES                                                                          ,BROOK STREET (UK) LTD,BA0000282484,488.54,
BIS,The Insolvency Service,19/12/2014,Agency Workers,OFFICIAL RECEIVER SERVICES                                                                          ,BROOK STREET (UK) LTD,BA0000282484,458.54,
BIS,The Insolvency Service,19/12/2014,Agency Workers,OFFICIAL RECEIVER SERVICES                                                                          ,BROOK STREET (UK) LTD,BA0000282484,374.40,
BIS,The Insolvency Service,19/12/2014,Agency Workers,OFFICIAL RECEIVER SERVICES                                                                          ,BROOK STREET (UK) LTD,BA0000282484,299.52,
BIS,The Insolvency Service,23/12/2014,Agency Workers,OFFICIAL RECEIVER SERVICES                                                                          ,BROOK STREET (UK) LTD,BA0000282619,369.41,
BIS,The Insolvency Service,23/12/2014,Agency Workers,OFFICIAL RECEIVER SERVICES                                                                          ,BROOK STREET (UK) LTD,BA0000282619,376.90,
BIS,The Insolvency Service,23/12/2014,Agency Workers,OFFICIAL RECEIVER SERVICES                                                                          ,BROOK STREET (UK) LTD,BA0000282619,458.10,
BIS,The Insolvency Service,23/12/2014,Agency Workers,OFFICIAL RECEIVER SERVICES                                                                          ,BROOK STREET (UK) LTD,BA0000282619,479.38,
BIS,The Insolvency Service,23/12/2014,Agency Workers,OFFICIAL RECEIVER SERVICES                                                                          ,BROOK STREET (UK) LTD,BA0000282619,488.54,
BIS,The Insolvency Service,23/12/2014,Agency Workers,OFFICIAL RECEIVER SERVICES                                                                          ,BROOK STREET (UK) LTD,BA0000282619,379.62,
BIS,The Insolvency Service,23/12/2014,Agency Workers,OFFICIAL RECEIVER SERVICES                                                                          ,BROOK STREET (UK) LTD,BA0000282619,213.30,
BIS,The Insolvency Service,23/12/2014,Agency Workers,OFFICIAL RECEIVER SERVICES                                                                          ,BROOK STREET (UK) LTD,BA0000282619,368.96,
BIS,The Insolvency Service,23/12/2014,Agency Workers,OFFICIAL RECEIVER SERVICES                                                                          ,BROOK STREET (UK) LTD,BA0000282619,373.94,
BIS,The Insolvency Service,23/12/2014,Agency Workers,OFFICIAL RECEIVER SERVICES                                                                          ,BROOK STREET (UK) LTD,BA0000282619,375.18,
BIS,The Insolvency Service,23/12/2014,Agency Workers,OFFICIAL RECEIVER SERVICES                                                                          ,BROOK STREET (UK) LTD,BA0000282619,458.10,
BIS,The Insolvency Service,23/12/2014,Agency Workers,OFFICIAL RECEIVER SERVICES                                                                          ,BROOK STREET (UK) LTD,BA0000282619,430.56,
BIS,The Insolvency Service,23/12/2014,Agency Workers,OFFICIAL RECEIVER SERVICES                                                                          ,BROOK STREET (UK) LTD,BA0000282619,322.92,
BIS,The Insolvency Service,23/12/2014,Agency Workers,OFFICIAL RECEIVER SERVICES                                                                          ,BROOK STREET (UK) LTD,BA0000282619,458.54,
BIS,The Insolvency Service,23/12/2014,Agency Workers,OFFICIAL RECEIVER SERVICES                                                                          ,BROOK STREET (UK) LTD,BA0000282619,488.54,
BIS,The Insolvency Service,23/12/2014,Agency Workers,OFFICIAL RECEIVER SERVICES                                                                          ,BROOK STREET (UK) LTD,BA0000282619,329.47,
BIS,The Insolvency Service,23/12/2014,Agency Workers,OFFICIAL RECEIVER SERVICES                                                                          ,BROOK STREET (UK) LTD,BA0000282619,374.40,
BIS,The Insolvency Service,19/12/2014,Agency Workers,PEOPLE & CAPABILITY                                                                                 ,BROOK STREET (UK) LTD,BA0000282481,441.32,
BIS,The Insolvency Service,19/12/2014,Agency Workers,PEOPLE & CAPABILITY                                                                                 ,BROOK STREET (UK) LTD,BA0000282484,516.67,
BIS,The Insolvency Service,23/12/2014,Agency Workers,PEOPLE & CAPABILITY                                                                                 ,BROOK STREET (UK) LTD,BA0000282619,568.20,
BIS,The Insolvency Service,19/12/2014,Agency Workers,PROJECTS                                                                                            ,BROOK STREET (UK) LTD,BA0000282481,789.83,
BIS,The Insolvency Service,19/12/2014,Agency Workers,PROJECTS                                                                                            ,BROOK STREET (UK) LTD,BA0000282481,426.60,
BIS,The Insolvency Service,19/12/2014,Agency Workers,PROJECTS                                                                                            ,BROOK STREET (UK) LTD,BA0000282481,595.10,
BIS,The Insolvency Service,19/12/2014,Agency Workers,PROJECTS                                                                                            ,BROOK STREET (UK) LTD,BA0000282481,602.28,
BIS,The Insolvency Service,19/12/2014,Agency Workers,PROJECTS                                                                                            ,BROOK STREET (UK) LTD,BA0000282481,573.60,
BIS,The Insolvency Service,19/12/2014,Agency Workers,PROJECTS                                                                                            ,BROOK STREET (UK) LTD,BA0000282481,498.31,
BIS,The Insolvency Service,19/12/2014,Agency Workers,PROJECTS                                                                                            ,BROOK STREET (UK) LTD,BA0000282481,412.38,
BIS,The Insolvency Service,19/12/2014,Agency Workers,PROJECTS                                                                                            ,BROOK STREET (UK) LTD,BA0000282481,225.35,
BIS,The Insolvency Service,19/12/2014,Agency Workers,PROJECTS                                                                                            ,BROOK STREET (UK) LTD,BA0000282481,370.10,
BIS,The Insolvency Service,19/12/2014,Agency Workers,PROJECTS                                                                                            ,BROOK STREET (UK) LTD,BA0000282484,808.86,
BIS,The Insolvency Service,19/12/2014,Agency Workers,PROJECTS                                                                                            ,BROOK STREET (UK) LTD,BA0000282484,447.92,
BIS,The Insolvency Service,19/12/2014,Agency Workers,PROJECTS                                                                                            ,BROOK STREET (UK) LTD,BA0000282484,580.76,
BIS,The Insolvency Service,19/12/2014,Agency Workers,PROJECTS                                                                                            ,BROOK STREET (UK) LTD,BA0000282484,602.28,
BIS,The Insolvency Service,19/12/2014,Agency Workers,PROJECTS                                                                                            ,BROOK STREET (UK) LTD,BA0000282484,617.94,
BIS,The Insolvency Service,19/12/2014,Agency Workers,PROJECTS                                                                                            ,BROOK STREET (UK) LTD,BA0000282484,412.62,
BIS,The Insolvency Service,19/12/2014,Agency Workers,PROJECTS                                                                                            ,BROOK STREET (UK) LTD,BA0000282484,357.43,
BIS,The Insolvency Service,23/12/2014,Agency Workers,PROJECTS                                                                                            ,BROOK STREET (UK) LTD,BA0000282619,547.46,
BIS,The Insolvency Service,23/12/2014,Agency Workers,PROJECTS                                                                                            ,BROOK STREET (UK) LTD,BA0000282619,617.94,
BIS,The Insolvency Service,23/12/2014,Agency Workers,PROJECTS                                                                                            ,BROOK STREET (UK) LTD,BA0000282619,602.28,
BIS,The Insolvency Service,23/12/2014,Agency Workers,PROJECTS                                                                                            ,BROOK STREET (UK) LTD,BA0000282619,602.28,
BIS,The Insolvency Service,23/12/2014,Agency Workers,PROJECTS                                                                                            ,BROOK STREET (UK) LTD,BA0000282619,574.82,
BIS,The Insolvency Service,23/12/2014,Agency Workers,PROJECTS                                                                                            ,BROOK STREET (UK) LTD,BA0000282619,327.01,
BIS,The Insolvency Service,10/12/2014,Telecoms,BUSINESS SERVICES DIRECTORATE                                                                       ,BT CONFERENCING SERVICES,BA0000282234,0.04,245719348
BIS,The Insolvency Service,10/12/2014,Telecoms,BUSINESS SERVICES DIRECTORATE                                                                       ,BT CONFERENCING SERVICES,BA0000282234,21.56,245719348
BIS,The Insolvency Service,10/12/2014,Telecoms,CUSTOMER AND COMMUNICATIONS                                                                         ,BT CONFERENCING SERVICES,BA0000282234,10.62,245719348
BIS,The Insolvency Service,10/12/2014,Telecoms,FINANCE AND COMMERCIAL                                                                              ,BT CONFERENCING SERVICES,BA0000282234,22.44,245719348
BIS,The Insolvency Service,10/12/2014,Telecoms,FINANCE AND COMMERCIAL                                                                              ,BT CONFERENCING SERVICES,BA0000282234,79.97,245719348
BIS,The Insolvency Service,10/12/2014,Telecoms,FINANCE AND COMMERCIAL                                                                              ,BT CONFERENCING SERVICES,BA0000282234,373.14,245719348
BIS,The Insolvency Service,10/12/2014,Telecoms,INFORMATION TECHNOLOGY                                                                              ,BT CONFERENCING SERVICES,BA0000282234,208.28,245719348
BIS,The Insolvency Service,10/12/2014,Telecoms,OFFICIAL RECEIVER SERVICES                                                                          ,BT CONFERENCING SERVICES,BA0000282234,1.88,245719348
BIS,The Insolvency Service,10/12/2014,Telecoms,OFFICIAL RECEIVER SERVICES                                                                          ,BT CONFERENCING SERVICES,BA0000282234,2.02,245719348
BIS,The Insolvency Service,10/12/2014,Telecoms,OFFICIAL RECEIVER SERVICES                                                                          ,BT CONFERENCING SERVICES,BA0000282234,3.94,245719348
BIS,The Insolvency Service,10/12/2014,Telecoms,OFFICIAL RECEIVER SERVICES                                                                          ,BT CONFERENCING SERVICES,BA0000282234,5.10,245719348
BIS,The Insolvency Service,10/12/2014,Telecoms,OFFICIAL RECEIVER SERVICES                                                                          ,BT CONFERENCING SERVICES,BA0000282234,5.32,245719348
BIS,The Insolvency Service,10/12/2014,Telecoms,OFFICIAL RECEIVER SERVICES                                                                          ,BT CONFERENCING SERVICES,BA0000282234,7.22,245719348
BIS,The Insolvency Service,10/12/2014,Telecoms,OFFICIAL RECEIVER SERVICES                                                                          ,BT CONFERENCING SERVICES,BA0000282234,7.50,245719348
BIS,The Insolvency Service,10/12/2014,Telecoms,OFFICIAL RECEIVER SERVICES                                                                          ,BT CONFERENCING SERVICES,BA0000282234,7.88,245719348
BIS,The Insolvency Service,10/12/2014,Telecoms,OFFICIAL RECEIVER SERVICES                                                                          ,BT CONFERENCING SERVICES,BA0000282234,14.66,245719348
BIS,The Insolvency Service,10/12/2014,Telecoms,OFFICIAL RECEIVER SERVICES                                                                          ,BT CONFERENCING SERVICES,BA0000282234,15.76,245719348
BIS,The Insolvency Service,10/12/2014,Telecoms,OFFICIAL RECEIVER SERVICES                                                                          ,BT CONFERENCING SERVICES,BA0000282234,40.27,245719348
BIS,The Insolvency Service,10/12/2014,Telecoms,OFFICIAL RECEIVER SERVICES                                                                          ,BT CONFERENCING SERVICES,BA0000282234,58.73,245719348
BIS,The Insolvency Service,22/12/2014,Telecoms,BUSINESS SERVICES DIRECTORATE                                                                       ,BT TELEPHONE PAYMENT CENTRE,BA0000282606,59.51,245719348
BIS,The Insolvency Service,22/12/2014,Telecoms,BUSINESS SERVICES DIRECTORATE                                                                       ,BT TELEPHONE PAYMENT CENTRE,BA0000282606,"1,773.90",245719348
BIS,The Insolvency Service,22/12/2014,Telecoms,BUSINESS SERVICES DIRECTORATE                                                                       ,BT TELEPHONE PAYMENT CENTRE,BA0000282606,"4,368.75",245719348
BIS,The Insolvency Service,01/12/2014,Telecoms,FINANCE AND COMMERCIAL                                                                              ,BT TELEPHONE PAYMENT CENTRE,BA0000282566,104.91,245719348
BIS,The Insolvency Service,01/12/2014,Telecoms,FINANCE AND COMMERCIAL                                                                              ,BT TELEPHONE PAYMENT CENTRE,BA0000282566,73.47,245719348
BIS,The Insolvency Service,01/12/2014,Telecoms,FINANCE AND COMMERCIAL                                                                              ,BT TELEPHONE PAYMENT CENTRE,BA0000282566,81.09,245719348
BIS,The Insolvency Service,01/12/2014,Telecoms,FINANCE AND COMMERCIAL                                                                              ,BT TELEPHONE PAYMENT CENTRE,BA0000282566,98.66,245719348
BIS,The Insolvency Service,01/12/2014,Telecoms,FINANCE AND COMMERCIAL                                                                              ,BT TELEPHONE PAYMENT CENTRE,BA0000282566,101.93,245719348
BIS,The Insolvency Service,01/12/2014,Telecoms,FINANCE AND COMMERCIAL                                                                              ,BT TELEPHONE PAYMENT CENTRE,BA0000282566,80.16,245719348
BIS,The Insolvency Service,01/12/2014,Telecoms,FINANCE AND COMMERCIAL                                                                              ,BT TELEPHONE PAYMENT CENTRE,BA0000282566,77.14,245719348
BIS,The Insolvency Service,01/12/2014,Telecoms,FINANCE AND COMMERCIAL                                                                              ,BT TELEPHONE PAYMENT CENTRE,BA0000282566,88.26,245719348
BIS,The Insolvency Service,01/12/2014,Telecoms,FINANCE AND COMMERCIAL                                                                              ,BT TELEPHONE PAYMENT CENTRE,BA0000282566,133.83,245719348
BIS,The Insolvency Service,01/12/2014,Telecoms,FINANCE AND COMMERCIAL                                                                              ,BT TELEPHONE PAYMENT CENTRE,BA0000282566,-48.60,245719348
BIS,The Insolvency Service,01/12/2014,Telecoms,FINANCE AND COMMERCIAL                                                                              ,BT TELEPHONE PAYMENT CENTRE,BA0000282566,-43.05,245719348
BIS,The Insolvency Service,01/12/2014,Telecoms,FINANCE AND COMMERCIAL                                                                              ,BT TELEPHONE PAYMENT CENTRE,BA0000282566,-20.43,245719348
BIS,The Insolvency Service,01/12/2014,Telecoms,FINANCE AND COMMERCIAL                                                                              ,BT TELEPHONE PAYMENT CENTRE,BA0000282566,-50.87,245719348
BIS,The Insolvency Service,01/12/2014,Telecoms,FINANCE AND COMMERCIAL                                                                              ,BT TELEPHONE PAYMENT CENTRE,BA0000282566,-11.63,245719348
BIS,The Insolvency Service,01/12/2014,Telecoms,FINANCE AND COMMERCIAL                                                                              ,BT TELEPHONE PAYMENT CENTRE,BA0000282566,-69.22,245719348
BIS,The Insolvency Service,01/12/2014,Telecoms,FINANCE AND COMMERCIAL                                                                              ,BT TELEPHONE PAYMENT CENTRE,BA0000282566,-12.17,245719348
BIS,The Insolvency Service,22/12/2014,Telecoms,FINANCE AND COMMERCIAL                                                                              ,BT TELEPHONE PAYMENT CENTRE,BA0000282606,71.96,245719348
BIS,The Insolvency Service,22/12/2014,Telecoms,FINANCE AND COMMERCIAL                                                                              ,BT TELEPHONE PAYMENT CENTRE,BA0000282606,189.39,245719348
BIS,The Insolvency Service,22/12/2014,Telecoms,FINANCE AND COMMERCIAL                                                                              ,BT TELEPHONE PAYMENT CENTRE,BA0000282606,"2,074.40",245719348
BIS,The Insolvency Service,01/12/2014,Telecoms,INFORMATION TECHNOLOGY                                                                              ,BT TELEPHONE PAYMENT CENTRE,BA0000282566,81.55,245719348
BIS,The Insolvency Service,01/12/2014,Telecoms,INFORMATION TECHNOLOGY                                                                              ,BT TELEPHONE PAYMENT CENTRE,BA0000282566,181.07,245719348
BIS,The Insolvency Service,01/12/2014,Telecoms,INFORMATION TECHNOLOGY                                                                              ,BT TELEPHONE PAYMENT CENTRE,BA0000282566,70.25,245719348
BIS,The Insolvency Service,01/12/2014,Telecoms,INFORMATION TECHNOLOGY                                                                              ,BT TELEPHONE PAYMENT CENTRE,BA0000282566,86.63,245719348
BIS,The Insolvency Service,01/12/2014,Telecoms,INFORMATION TECHNOLOGY                                                                              ,BT TELEPHONE PAYMENT CENTRE,BA0000282566,115.29,245719348
BIS,The Insolvency Service,01/12/2014,Telecoms,INFORMATION TECHNOLOGY                                                                              ,BT TELEPHONE PAYMENT CENTRE,BA0000282566,-31.88,245719348
BIS,The Insolvency Service,01/12/2014,Telecoms,INFORMATION TECHNOLOGY                                                                              ,BT TELEPHONE PAYMENT CENTRE,BA0000282566,19.30,245719348
BIS,The Insolvency Service,01/12/2014,Telecoms,INFORMATION TECHNOLOGY                                                                              ,BT TELEPHONE PAYMENT CENTRE,BA0000282566,46.82,245719348
BIS,The Insolvency Service,22/12/2014,Telecoms,INFORMATION TECHNOLOGY                                                                              ,BT TELEPHONE PAYMENT CENTRE,BA0000282606,"2,026.15",245719348
BIS,The Insolvency Service,22/12/2014,Telecoms,INVESTIGATIONS & ENFORCEMENT                                                                        ,BT TELEPHONE PAYMENT CENTRE,BA0000282606,71.96,245719348
BIS,The Insolvency Service,02/12/2014,Telecoms,OFFICIAL RECEIVER SERVICES                                                                          ,BT TELEPHONE PAYMENT CENTRE,BA0000281986,102.52,245719348
BIS,The Insolvency Service,22/12/2014,Telecoms,OFFICIAL RECEIVER SERVICES                                                                          ,BT TELEPHONE PAYMENT CENTRE,BA0000282606,-113.78,245719348
BIS,The Insolvency Service,22/12/2014,Telecoms,OFFICIAL RECEIVER SERVICES                                                                          ,BT TELEPHONE PAYMENT CENTRE,BA0000282606,71.96,245719348
BIS,The Insolvency Service,22/12/2014,Telecoms,OFFICIAL RECEIVER SERVICES                                                                          ,BT TELEPHONE PAYMENT CENTRE,BA0000282606,71.96,245719348
BIS,The Insolvency Service,22/12/2014,Telecoms,OFFICIAL RECEIVER SERVICES                                                                          ,BT TELEPHONE PAYMENT CENTRE,BA0000282606,373.50,245719348
BIS,The Insolvency Service,22/12/2014,Telecoms,OFFICIAL RECEIVER SERVICES                                                                          ,BT TELEPHONE PAYMENT CENTRE,BA0000282606,442.76,245719348
BIS,The Insolvency Service,22/12/2014,Telecoms,OFFICIAL RECEIVER SERVICES                                                                          ,BT TELEPHONE PAYMENT CENTRE,BA0000282606,510.24,245719348
BIS,The Insolvency Service,22/12/2014,Telecoms,OFFICIAL RECEIVER SERVICES                                                                          ,BT TELEPHONE PAYMENT CENTRE,BA0000282606,527.49,245719348
BIS,The Insolvency Service,22/12/2014,Telecoms,OFFICIAL RECEIVER SERVICES                                                                          ,BT TELEPHONE PAYMENT CENTRE,BA0000282606,590.08,245719348
BIS,The Insolvency Service,22/12/2014,Telecoms,OFFICIAL RECEIVER SERVICES                                                                          ,BT TELEPHONE PAYMENT CENTRE,BA0000282606,609.53,245719348
BIS,The Insolvency Service,22/12/2014,Telecoms,OFFICIAL RECEIVER SERVICES                                                                          ,BT TELEPHONE PAYMENT CENTRE,BA0000282606,618.46,245719348
BIS,The Insolvency Service,22/12/2014,Telecoms,OFFICIAL RECEIVER SERVICES                                                                          ,BT TELEPHONE PAYMENT CENTRE,BA0000282606,621.14,245719348
BIS,The Insolvency Service,22/12/2014,Telecoms,OFFICIAL RECEIVER SERVICES                                                                          ,BT TELEPHONE PAYMENT CENTRE,BA0000282606,689.14,245719348
BIS,The Insolvency Service,22/12/2014,Telecoms,OFFICIAL RECEIVER SERVICES                                                                          ,BT TELEPHONE PAYMENT CENTRE,BA0000282606,710.14,245719348
BIS,The Insolvency Service,22/12/2014,Telecoms,OFFICIAL RECEIVER SERVICES                                                                          ,BT TELEPHONE PAYMENT CENTRE,BA0000282606,771.07,245719348
BIS,The Insolvency Service,22/12/2014,Telecoms,OFFICIAL RECEIVER SERVICES                                                                          ,BT TELEPHONE PAYMENT CENTRE,BA0000282606,814.81,245719348
BIS,The Insolvency Service,22/12/2014,Telecoms,OFFICIAL RECEIVER SERVICES                                                                          ,BT TELEPHONE PAYMENT CENTRE,BA0000282606,821.02,245719348
BIS,The Insolvency Service,22/12/2014,Telecoms,OFFICIAL RECEIVER SERVICES                                                                          ,BT TELEPHONE PAYMENT CENTRE,BA0000282606,830.59,245719348
BIS,The Insolvency Service,22/12/2014,Telecoms,OFFICIAL RECEIVER SERVICES                                                                          ,BT TELEPHONE PAYMENT CENTRE,BA0000282606,833.91,245719348
BIS,The Insolvency Service,22/12/2014,Telecoms,OFFICIAL RECEIVER SERVICES                                                                          ,BT TELEPHONE PAYMENT CENTRE,BA0000282606,849.03,245719348
BIS,The Insolvency Service,22/12/2014,Telecoms,OFFICIAL RECEIVER SERVICES                                                                          ,BT TELEPHONE PAYMENT CENTRE,BA0000282606,933.43,245719348
BIS,The Insolvency Service,22/12/2014,Telecoms,OFFICIAL RECEIVER SERVICES                                                                          ,BT TELEPHONE PAYMENT CENTRE,BA0000282606,"1,075.18",245719348
BIS,The Insolvency Service,22/12/2014,Telecoms,OFFICIAL RECEIVER SERVICES                                                                          ,BT TELEPHONE PAYMENT CENTRE,BA0000282606,"1,118.31",245719348
BIS,The Insolvency Service,22/12/2014,Telecoms,OFFICIAL RECEIVER SERVICES                                                                          ,BT TELEPHONE PAYMENT CENTRE,BA0000282606,"1,483.83",245719348
BIS,The Insolvency Service,22/12/2014,Telecoms,OFFICIAL RECEIVER SERVICES                                                                          ,BT TELEPHONE PAYMENT CENTRE,BA0000282606,"1,649.32",245719348
BIS,The Insolvency Service,22/12/2014,Telecoms,OFFICIAL RECEIVER SERVICES                                                                          ,BT TELEPHONE PAYMENT CENTRE,BA0000282606,"2,750.29",245719348
BIS,The Insolvency Service,12/12/2014,Investigation and Enforcement Costs,INVESTIGATIONS & ENFORCEMENT                                                                        ,BTG GLOBAL RISK PARTNERS,BA0000282307,"6,927.50",880996072
BIS,The Insolvency Service,23/12/2014,Investigation and Enforcement Costs,INVESTIGATIONS & ENFORCEMENT                                                                        ,BURNESS PAULL & WILLIAMSONS SOLICITORS,BA0000282655,125.00,268398111
BIS,The Insolvency Service,23/12/2014,Investigation and Enforcement Costs,INVESTIGATIONS & ENFORCEMENT                                                                        ,BURNESS PAULL & WILLIAMSONS SOLICITORS,BA0000282655,"42,781.24",268398111
BIS,The Insolvency Service,23/12/2014,Investigation and Enforcement Costs,INVESTIGATIONS & ENFORCEMENT                                                                        ,BURNESS PAULL & WILLIAMSONS SOLICITORS,BA0000282655,47.00,268398111
BIS,The Insolvency Service,23/12/2014,Investigation and Enforcement Costs,INVESTIGATIONS & ENFORCEMENT                                                                        ,BURNESS PAULL & WILLIAMSONS SOLICITORS,BA0000282655,"11,593.95",268398111
BIS,The Insolvency Service,23/12/2014,Investigation and Enforcement Costs,INVESTIGATIONS & ENFORCEMENT                                                                        ,BURNESS PAULL & WILLIAMSONS SOLICITORS,BA0000282655,207.75,268398111
BIS,The Insolvency Service,23/12/2014,Investigation and Enforcement Costs,INVESTIGATIONS & ENFORCEMENT                                                                        ,BURNESS PAULL & WILLIAMSONS SOLICITORS,BA0000282655,"2,897.40",268398111
BIS,The Insolvency Service,23/12/2014,Investigation and Enforcement Costs,INVESTIGATIONS & ENFORCEMENT                                                                        ,BURNESS PAULL & WILLIAMSONS SOLICITORS,BA0000282655,"1,500.00",268398111
BIS,The Insolvency Service,11/12/2014,Accommodation,FINANCE AND COMMERCIAL                                                                              ,BUSINESS MOVES GROUP LTD                                    ,BA0000282261,"7,096.50",
BIS,The Insolvency Service,15/12/2014,Conferences,PROJECTS                                                                                            ,CALDER                                                      ,BA0000282363,"2,469.78",482027849
BIS,The Insolvency Service,02/12/2014,Training Costs,FINANCE AND COMMERCIAL                                                                              ,CAPITA BUSINESS SERVICES LTD,BA0000281973,"3,612.00",618184140
BIS,The Insolvency Service,10/12/2014,Training Costs,FINANCE AND COMMERCIAL                                                                              ,CAPITA BUSINESS SERVICES LTD,BA0000282216,142.00,618184140
BIS,The Insolvency Service,18/12/2014,Training Costs,FINANCE AND COMMERCIAL                                                                              ,CAPITA BUSINESS SERVICES LTD,BA0000282477,170.00,618184140
BIS,The Insolvency Service,18/12/2014,Training Costs,FINANCE AND COMMERCIAL                                                                              ,CAPITA BUSINESS SERVICES LTD,BA0000282498,"1,775.00",618184140
BIS,The Insolvency Service,18/12/2014,Training Costs,FINANCE AND COMMERCIAL                                                                              ,CAPITA BUSINESS SERVICES LTD,BA0000282499,"1,775.00",618184140
BIS,The Insolvency Service,18/12/2014,Training Costs,FINANCE AND COMMERCIAL                                                                              ,CAPITA BUSINESS SERVICES LTD,BA0000282500,"1,775.00",618184140
BIS,The Insolvency Service,18/12/2014,Training Costs,FINANCE AND COMMERCIAL                                                                              ,CAPITA BUSINESS SERVICES LTD,BA0000282494,133.00,618184140
BIS,The Insolvency Service,02/12/2014,Training Costs,PEOPLE & CAPABILITY                                                                                 ,CAPITA BUSINESS SERVICES LTD,BA0000281991,119.99,618184140
BIS,The Insolvency Service,02/12/2014,Training Costs,PEOPLE & CAPABILITY                                                                                 ,CAPITA BUSINESS SERVICES LTD,BA0000281992,178.81,618184140
BIS,The Insolvency Service,02/12/2014,Training Costs,PEOPLE & CAPABILITY                                                                                 ,CAPITA BUSINESS SERVICES LTD,BA0000281984,269.33,618184140
BIS,The Insolvency Service,02/12/2014,Training Costs,PEOPLE & CAPABILITY                                                                                 ,CAPITA BUSINESS SERVICES LTD,BA0000281985,269.33,618184140
BIS,The Insolvency Service,02/12/2014,Training Costs,PEOPLE & CAPABILITY                                                                                 ,CAPITA BUSINESS SERVICES LTD,BA0000281993,178.82,618184140
BIS,The Insolvency Service,10/12/2014,Training Costs,PEOPLE & CAPABILITY                                                                                 ,CAPITA BUSINESS SERVICES LTD,BA0000282217,178.81,618184140
BIS,The Insolvency Service,12/12/2014,Training Costs,PEOPLE & CAPABILITY                                                                                 ,CAPITA BUSINESS SERVICES LTD,BA0000282301,250.00,618184140
BIS,The Insolvency Service,12/12/2014,Training Costs,PEOPLE & CAPABILITY                                                                                 ,CAPITA BUSINESS SERVICES LTD,BA0000282308,76.00,618184140
BIS,The Insolvency Service,12/12/2014,Training Costs,PEOPLE & CAPABILITY                                                                                 ,CAPITA BUSINESS SERVICES LTD,BA0000282309,76.00,618184140
BIS,The Insolvency Service,12/12/2014,Training Costs,PEOPLE & CAPABILITY                                                                                 ,CAPITA BUSINESS SERVICES LTD,BA0000282310,129.00,618184140
BIS,The Insolvency Service,12/12/2014,Training Costs,PEOPLE & CAPABILITY                                                                                 ,CAPITA BUSINESS SERVICES LTD,BA0000282311,613.66,618184140
BIS,The Insolvency Service,18/12/2014,Training Costs,PEOPLE & CAPABILITY                                                                                 ,CAPITA BUSINESS SERVICES LTD,BA0000282490,398.00,618184140
BIS,The Insolvency Service,18/12/2014,Training Costs,PEOPLE & CAPABILITY                                                                                 ,CAPITA BUSINESS SERVICES LTD,BA0000282491,398.00,618184140
BIS,The Insolvency Service,18/12/2014,Training Costs,PEOPLE & CAPABILITY                                                                                 ,CAPITA BUSINESS SERVICES LTD,BA0000282492,293.00,618184140
BIS,The Insolvency Service,18/12/2014,Training Costs,PEOPLE & CAPABILITY                                                                                 ,CAPITA BUSINESS SERVICES LTD,BA0000282493,256.00,618184140
BIS,The Insolvency Service,18/12/2014,Training Costs,PEOPLE & CAPABILITY                                                                                 ,CAPITA BUSINESS SERVICES LTD,BA0000282501,"1,294.00",618184140
BIS,The Insolvency Service,18/12/2014,Training Costs,PEOPLE & CAPABILITY                                                                                 ,CAPITA BUSINESS SERVICES LTD,BA0000282502,"3,246.00",618184140
BIS,The Insolvency Service,23/12/2014,Training Costs,PEOPLE & CAPABILITY                                                                                 ,CAPITA BUSINESS SERVICES LTD,BA0000282623,365.00,618184140
BIS,The Insolvency Service,23/12/2014,Training Costs,PEOPLE & CAPABILITY                                                                                 ,CAPITA BUSINESS SERVICES LTD,BA0000282648,"3,246.00",618184140
BIS,The Insolvency Service,23/12/2014,Training Costs,PEOPLE & CAPABILITY                                                                                 ,CAPITA BUSINESS SERVICES LTD,BA0000282624,365.00,618184140
BIS,The Insolvency Service,23/12/2014,Training Costs,PEOPLE & CAPABILITY                                                                                 ,CAPITA BUSINESS SERVICES LTD,BA0000282649,"1,947.60",618184140
BIS,The Insolvency Service,10/12/2014,Agency Workers,FINANCE AND COMMERCIAL                                                                              ,CAPITA INTERIM MANAGEMENT,BA0000282189,"12,435.12",618184140
BIS,The Insolvency Service,19/12/2014,Agency Workers,FINANCE AND COMMERCIAL                                                                              ,CAPITA INTERIM MANAGEMENT,BA0000282523,"5,595.80",618184140
BIS,The Insolvency Service,01/12/2014,Agency Workers,FINANCE AND COMMERCIAL                                                                              ,CAPITA RESOURCING LTD,BA0000281917,"3,900.00",618184140
BIS,The Insolvency Service,09/12/2014,Agency Workers,FINANCE AND COMMERCIAL                                                                              ,CAPITA RESOURCING LTD,BA0000282156,"3,900.00",618184140
BIS,The Insolvency Service,12/12/2014,Agency Workers,FINANCE AND COMMERCIAL                                                                              ,CAPITA RESOURCING LTD,BA0000282327,"7,800.00",618184140
BIS,The Insolvency Service,22/12/2014,Agency Workers,FINANCE AND COMMERCIAL                                                                              ,CAPITA RESOURCING LTD,BA0000282597,"3,900.00",618184140
BIS,The Insolvency Service,31/12/2014,Agency Workers,FINANCE AND COMMERCIAL                                                                              ,CAPITA RESOURCING LTD,BA0000282768,"2,072.52",618184140
BIS,The Insolvency Service,31/12/2014,Agency Workers,FINANCE AND COMMERCIAL                                                                              ,CAPITA RESOURCING LTD,BA0000282769,"3,900.00",618184140
BIS,The Insolvency Service,01/12/2014,Agency Workers,INFORMATION TECHNOLOGY                                                                              ,CAPITA RESOURCING LTD,BA0000281931,"2,072.52",618184140
BIS,The Insolvency Service,04/12/2014,Agency Workers,INFORMATION TECHNOLOGY                                                                              ,CAPITA RESOURCING LTD,BA0000282063,"2,072.52",618184140
BIS,The Insolvency Service,15/12/2014,Agency Workers,INFORMATION TECHNOLOGY                                                                              ,CAPITA RESOURCING LTD,BA0000282377,"2,072.52",618184140
BIS,The Insolvency Service,19/12/2014,Agency Workers,INFORMATION TECHNOLOGY                                                                              ,CAPITA RESOURCING LTD,BA0000282516,"2,072.52",618184140
BIS,The Insolvency Service,31/12/2014,Agency Workers,INFORMATION TECHNOLOGY                                                                              ,CAPITA RESOURCING LTD,BA0000282746,"1,865.27",618184140
BIS,The Insolvency Service,01/12/2014,Postage,OFFICIAL RECEIVER SERVICES                                                                          ,CARDS GALORE,BA0000282566,37.20,
BIS,The Insolvency Service,12/12/2014,Computer and IT Systems,INFORMATION TECHNOLOGY                                                                              ,CAREER VISION TRAINING LTD                                  ,BA0000282324,"1,526.40",
BIS,The Insolvency Service,22/12/2014,Accommodation,ESTATES,CARILLION SERVICE SOLUTIONS,BA0000282574,"161,977.50",894545868
BIS,The Insolvency Service,22/12/2014,Accommodation,ESTATES,CARILLION SERVICES,BA0000282596,"35,986.53",894545868
BIS,The Insolvency Service,22/12/2014,Accommodation,ESTATES,CARILLION SERVICES,BA0000282596,"6,113.21",894545868
BIS,The Insolvency Service,09/12/2014,Employee Related Costs,INVESTIGATIONS & ENFORCEMENT                                                                        ,CARTUS FINANCING LIMITED,BA0000282151,120.00,768489458
BIS,The Insolvency Service,16/12/2014,Accommodation,ESTATES,CBRE RICHARD ELLIS CBRE LTD,BA0000282442,"58,352.86",
BIS,The Insolvency Service,16/12/2014,Accommodation,ESTATES,CBRE RICHARD ELLIS CBRE LTD,BA0000282442,"20,142.25",
BIS,The Insolvency Service,12/12/2014,Accommodation,ESTATES,CGM LANDSCAPES (COMPLETE GROUNDS MAINTENANCE LTD),BA0000282335,102.00,943560027
BIS,The Insolvency Service,02/12/2014,Travel and Subsistence,BUSINESS SERVICES DIRECTORATE                                                                       ,CITY CABS (EDINBURGH) LTD,BA0000281989,180.83,270679436
BIS,The Insolvency Service,19/12/2014,Conferences,INVESTIGATIONS & ENFORCEMENT                                                                        ,CITY OF WESTMINSTER                                         ,BA0000282524,245.00,239291642
BIS,The Insolvency Service,04/12/2014,Training Costs,PEOPLE & CAPABILITY                                                                                 ,CITY OF WESTMINSTER                                         ,BA0000282070,355.00,239291642
BIS,The Insolvency Service,09/12/2014,Postage,FINANCE AND COMMERCIAL                                                                              ,CITY SPRINT UK LTD,BA0000282150,211.04,
BIS,The Insolvency Service,15/12/2014,Postage,FINANCE AND COMMERCIAL                                                                              ,CITY SPRINT UK LTD,BA0000282401,6.88,
BIS,The Insolvency Service,01/12/2014,Postage,OFFICIAL RECEIVER SERVICES                                                                          ,CITY SPRINT UK LTD,BA0000281893,338.42,
BIS,The Insolvency Service,02/12/2014,Postage,OFFICIAL RECEIVER SERVICES                                                                          ,CITY SPRINT UK LTD,BA0000281996,102.73,
BIS,The Insolvency Service,12/12/2014,Postage,OFFICIAL RECEIVER SERVICES                                                                          ,CITY SPRINT UK LTD,BA0000282336,87.35,
BIS,The Insolvency Service,12/12/2014,Postage,OFFICIAL RECEIVER SERVICES                                                                          ,CITY SPRINT UK LTD,BA0000282337,189.35,
BIS,The Insolvency Service,23/12/2014,Postage,OFFICIAL RECEIVER SERVICES                                                                          ,CITY SPRINT UK LTD,BA0000282641,78.88,
BIS,The Insolvency Service,29/12/2014,Postage,OFFICIAL RECEIVER SERVICES                                                                          ,CITY SPRINT UK LTD,BA0000282683,252.96,
BIS,The Insolvency Service,01/12/2014,Telecoms,FINANCE AND COMMERCIAL                                                                              ,CITY SPRINT UK LTD,BA0000281929,138.64,
BIS,The Insolvency Service,19/12/2014,Investigation and Enforcement Costs,INVESTIGATIONS & ENFORCEMENT                                                                        ,CLARKE WILLMOTT SOLICITORS,BA0000282542,349.91,129913060
BIS,The Insolvency Service,12/12/2014,Insolvency Case Related Costs,BUSINESS SERVICES DIRECTORATE                                                                       ,COMPANIES HOUSE,BA0000282315,284.00,GD255
BIS,The Insolvency Service,01/12/2014,Insolvency Case Related Costs,INVESTIGATIONS & ENFORCEMENT                                                                        ,COMPANIES HOUSE,BA0000281912,13.00,GD255
BIS,The Insolvency Service,01/12/2014,Insolvency Case Related Costs,INVESTIGATIONS & ENFORCEMENT                                                                        ,COMPANIES HOUSE,BA0000281920,"1,282.00",GD255
BIS,The Insolvency Service,01/12/2014,Insolvency Case Related Costs,INVESTIGATIONS & ENFORCEMENT                                                                        ,COMPANIES HOUSE,BA0000281913,424.00,GD255
BIS,The Insolvency Service,01/12/2014,Insolvency Case Related Costs,INVESTIGATIONS & ENFORCEMENT                                                                        ,COMPANIES HOUSE,BA0000281914,884.00,GD255
BIS,The Insolvency Service,04/12/2014,Insolvency Case Related Costs,OFFICIAL RECEIVER SERVICES                                                                          ,COMPANIES HOUSE,BA0000282078,58.00,GD255
BIS,The Insolvency Service,10/12/2014,Insolvency Case Related Costs,OFFICIAL RECEIVER SERVICES                                                                          ,COMPANIES HOUSE,BA0000282235,167.00,GD255
BIS,The Insolvency Service,10/12/2014,Insolvency Case Related Costs,OFFICIAL RECEIVER SERVICES                                                                          ,COMPANIES HOUSE,BA0000282236,140.00,GD255
BIS,The Insolvency Service,10/12/2014,Insolvency Case Related Costs,OFFICIAL RECEIVER SERVICES                                                                          ,COMPANIES HOUSE,BA0000282232,91.00,GD255
BIS,The Insolvency Service,10/12/2014,Insolvency Case Related Costs,OFFICIAL RECEIVER SERVICES                                                                          ,COMPANIES HOUSE,BA0000282224,5.00,GD255
BIS,The Insolvency Service,10/12/2014,Insolvency Case Related Costs,OFFICIAL RECEIVER SERVICES                                                                          ,COMPANIES HOUSE,BA0000282223,39.00,GD255
BIS,The Insolvency Service,10/12/2014,Insolvency Case Related Costs,OFFICIAL RECEIVER SERVICES                                                                          ,COMPANIES HOUSE,BA0000282214,146.00,GD255
BIS,The Insolvency Service,12/12/2014,Insolvency Case Related Costs,OFFICIAL RECEIVER SERVICES                                                                          ,COMPANIES HOUSE,BA0000282312,63.00,GD255
BIS,The Insolvency Service,12/12/2014,Insolvency Case Related Costs,OFFICIAL RECEIVER SERVICES                                                                          ,COMPANIES HOUSE,BA0000282313,14.00,GD255
BIS,The Insolvency Service,12/12/2014,Insolvency Case Related Costs,OFFICIAL RECEIVER SERVICES                                                                          ,COMPANIES HOUSE,BA0000282314,44.00,GD255
BIS,The Insolvency Service,12/12/2014,Insolvency Case Related Costs,OFFICIAL RECEIVER SERVICES                                                                          ,COMPANIES HOUSE,BA0000282350,61.00,GD255
BIS,The Insolvency Service,12/12/2014,Insolvency Case Related Costs,OFFICIAL RECEIVER SERVICES                                                                          ,COMPANIES HOUSE,BA0000282352,26.00,GD255
BIS,The Insolvency Service,12/12/2014,Insolvency Case Related Costs,OFFICIAL RECEIVER SERVICES                                                                          ,COMPANIES HOUSE,BA0000282353,77.00,GD255
BIS,The Insolvency Service,12/12/2014,Insolvency Case Related Costs,OFFICIAL RECEIVER SERVICES                                                                          ,COMPANIES HOUSE,BA0000282354,110.00,GD255
BIS,The Insolvency Service,15/12/2014,Insolvency Case Related Costs,OFFICIAL RECEIVER SERVICES                                                                          ,COMPANIES HOUSE,BA0000282367,66.00,GD255
BIS,The Insolvency Service,15/12/2014,Insolvency Case Related Costs,OFFICIAL RECEIVER SERVICES                                                                          ,COMPANIES HOUSE,BA0000282380,7.00,GD255
BIS,The Insolvency Service,15/12/2014,Insolvency Case Related Costs,OFFICIAL RECEIVER SERVICES                                                                          ,COMPANIES HOUSE,BA0000282381,36.00,GD255
BIS,The Insolvency Service,15/12/2014,Insolvency Case Related Costs,OFFICIAL RECEIVER SERVICES                                                                          ,COMPANIES HOUSE,BA0000282386,22.00,GD255
BIS,The Insolvency Service,15/12/2014,Insolvency Case Related Costs,OFFICIAL RECEIVER SERVICES                                                                          ,COMPANIES HOUSE,BA0000282387,21.00,GD255
BIS,The Insolvency Service,15/12/2014,Insolvency Case Related Costs,OFFICIAL RECEIVER SERVICES                                                                          ,COMPANIES HOUSE,BA0000282388,13.00,GD255
BIS,The Insolvency Service,16/12/2014,Insolvency Case Related Costs,OFFICIAL RECEIVER SERVICES                                                                          ,COMPANIES HOUSE,BA0000282445,9.00,GD255
BIS,The Insolvency Service,16/12/2014,Insolvency Case Related Costs,OFFICIAL RECEIVER SERVICES                                                                          ,COMPANIES HOUSE,BA0000282453,3.00,GD255
BIS,The Insolvency Service,16/12/2014,Insolvency Case Related Costs,OFFICIAL RECEIVER SERVICES                                                                          ,COMPANIES HOUSE,BA0000282451,38.00,GD255
BIS,The Insolvency Service,19/12/2014,Insolvency Case Related Costs,OFFICIAL RECEIVER SERVICES                                                                          ,COMPANIES HOUSE,BA0000282543,12.00,GD255
BIS,The Insolvency Service,19/12/2014,Insolvency Case Related Costs,OFFICIAL RECEIVER SERVICES                                                                          ,COMPANIES HOUSE,BA0000282534,35.00,GD255
BIS,The Insolvency Service,19/12/2014,Insolvency Case Related Costs,OFFICIAL RECEIVER SERVICES                                                                          ,COMPANIES HOUSE,BA0000282536,24.00,GD255
BIS,The Insolvency Service,22/12/2014,Insolvency Case Related Costs,OFFICIAL RECEIVER SERVICES                                                                          ,COMPANIES HOUSE,BA0000282589,20.00,GD255
BIS,The Insolvency Service,23/12/2014,Insolvency Case Related Costs,OFFICIAL RECEIVER SERVICES                                                                          ,COMPANIES HOUSE,BA0000282629,34.00,GD255
BIS,The Insolvency Service,04/12/2014,Telecoms,OFFICIAL RECEIVER SERVICES                                                                          ,COMPANIES HOUSE,BA0000282042,458.08,GD255
BIS,The Insolvency Service,04/12/2014,Computer and IT Systems,INFORMATION TECHNOLOGY                                                                              ,COMPUTACENTER (UK) LIMITED,BA0000282085,"13,146.51",490334648
BIS,The Insolvency Service,12/12/2014,Computer and IT Systems,INFORMATION TECHNOLOGY                                                                              ,COMPUTACENTER (UK) LIMITED,BA0000282328,"12,868.55",490334648
BIS,The Insolvency Service,22/12/2014,Telecoms,BUSINESS SERVICES DIRECTORATE                                                                       ,COMS.COM LTD                                                ,BA0000282607,"1,901.18",847139114
BIS,The Insolvency Service,19/12/2014,Agency Workers,FINANCE AND COMMERCIAL                                                                              ,CONSORTIA PERSONNEL LIMITED                                 ,BA0000282513,"3,084.00",977841055
BIS,The Insolvency Service,19/12/2014,Agency Workers,FINANCE AND COMMERCIAL                                                                              ,CONSORTIA PERSONNEL LIMITED                                 ,BA0000282514,"3,084.00",977841055
BIS,The Insolvency Service,19/12/2014,Agency Workers,FINANCE AND COMMERCIAL                                                                              ,CONSORTIA PERSONNEL LIMITED                                 ,BA0000282515,"3,084.00",977841055
BIS,The Insolvency Service,04/12/2014,Agency Workers,INFORMATION TECHNOLOGY                                                                              ,CONSORTIA PERSONNEL LIMITED                                 ,BA0000282066,"1,233.60",977841055
BIS,The Insolvency Service,04/12/2014,Agency Workers,INFORMATION TECHNOLOGY                                                                              ,CONSORTIA PERSONNEL LIMITED                                 ,BA0000282067,"3,084.00",977841055
BIS,The Insolvency Service,04/12/2014,Agency Workers,INFORMATION TECHNOLOGY                                                                              ,CONSORTIA PERSONNEL LIMITED                                 ,BA0000282077,"3,084.00",977841055
BIS,The Insolvency Service,04/12/2014,Agency Workers,INFORMATION TECHNOLOGY                                                                              ,CONSORTIA PERSONNEL LIMITED                                 ,BA0000282083,"3,084.00",977841055
BIS,The Insolvency Service,01/12/2014,Travel and Subsistence,FINANCE AND COMMERCIAL                                                                              ,CROWNE PLAZA - BIRMINGHAM CITY CENTRE,BA0000282566,125.00,866799247
BIS,The Insolvency Service,04/12/2014,Accommodation,ESTATES,DEPARTMENT FOR WORK & PENSIONS,BA0000282056,"6,191.19",888815554
BIS,The Insolvency Service,04/12/2014,Accommodation,ESTATES,DEPARTMENT FOR WORK & PENSIONS,BA0000282056,"1,979.41",888815554
BIS,The Insolvency Service,04/12/2014,Accommodation,ESTATES,DEPARTMENT FOR WORK & PENSIONS,BA0000282056,37.27,888815554
BIS,The Insolvency Service,09/12/2014,Accommodation,ESTATES,DEPARTMENT FOR WORK & PENSIONS,BA0000282132,"6,191.19",888815554
BIS,The Insolvency Service,09/12/2014,Accommodation,ESTATES,DEPARTMENT FOR WORK & PENSIONS,BA0000282132,"1,979.41",888815554
BIS,The Insolvency Service,19/12/2014,Employee Related Costs,PEOPLE & CAPABILITY                                                                                 ,DISCLOSURE SCOTLAND,BA0000282526,50.00,
BIS,The Insolvency Service,01/12/2014,Accommodation,FINANCE AND COMMERCIAL                                                                              ,DISPLAY PRODUCTS LTD                                        ,BA0000282566,52.80,892561982
BIS,The Insolvency Service,01/12/2014,Accounting and Banking,FINANCE AND COMMERCIAL                                                                              ,DISPLAY PRODUCTS LTD                                        ,BA0000282566,112.20,892561982
BIS,The Insolvency Service,01/12/2014,Travel and Subsistence,FINANCE AND COMMERCIAL,DOLLAR PHOTO CLUB                                           ,BA0000282566,1.93,
BIS,The Insolvency Service,30/12/2014,Insolvency Case Related Costs,OFFICIAL RECEIVER SERVICES                                                                          ,DR R GUPTA                                                  ,BA0000282676,100.00,
BIS,The Insolvency Service,11/12/2014,Investigation and Enforcement Costs,INVESTIGATIONS & ENFORCEMENT                                                                        ,DWF                                                         ,BA0000282267,"6,940.80",
BIS,The Insolvency Service,11/12/2014,Investigation and Enforcement Costs,INVESTIGATIONS & ENFORCEMENT                                                                        ,DWF                                                         ,BA0000282266,"7,186.00",
BIS,The Insolvency Service,11/12/2014,Investigation and Enforcement Costs,INVESTIGATIONS & ENFORCEMENT                                                                        ,DWF                                                         ,BA0000282283,40.00,
BIS,The Insolvency Service,11/12/2014,Investigation and Enforcement Costs,INVESTIGATIONS & ENFORCEMENT                                                                        ,DWF                                                         ,BA0000282268,"23,980.60",
BIS,The Insolvency Service,09/12/2014,Postage,INFORMATION TECHNOLOGY                                                                              ,DX NETWORK SERVICES LTD,BA0000282152,255.92,849741385
BIS,The Insolvency Service,09/12/2014,Postage,INFORMATION TECHNOLOGY                                                                              ,DX NETWORK SERVICES LTD,BA0000282152,379.15,849741385
BIS,The Insolvency Service,09/12/2014,Postage,OFFICIAL RECEIVER SERVICES                                                                          ,DX NETWORK SERVICES LTD,BA0000282149,250.00,849741385
BIS,The Insolvency Service,09/12/2014,Postage,OFFICIAL RECEIVER SERVICES                                                                          ,DX NETWORK SERVICES LTD,BA0000282149,250.00,849741385
BIS,The Insolvency Service,09/12/2014,Postage,OFFICIAL RECEIVER SERVICES                                                                          ,DX NETWORK SERVICES LTD,BA0000282152,16.99,849741385
BIS,The Insolvency Service,09/12/2014,Postage,OFFICIAL RECEIVER SERVICES                                                                          ,DX NETWORK SERVICES LTD,BA0000282152,79.96,849741385
BIS,The Insolvency Service,09/12/2014,Postage,OFFICIAL RECEIVER SERVICES                                                                          ,DX NETWORK SERVICES LTD,BA0000282152,82.64,849741385
BIS,The Insolvency Service,09/12/2014,Postage,OFFICIAL RECEIVER SERVICES                                                                          ,DX NETWORK SERVICES LTD,BA0000282152,90.42,849741385
BIS,The Insolvency Service,09/12/2014,Postage,OFFICIAL RECEIVER SERVICES                                                                          ,DX NETWORK SERVICES LTD,BA0000282152,107.67,849741385
BIS,The Insolvency Service,09/12/2014,Postage,OFFICIAL RECEIVER SERVICES                                                                          ,DX NETWORK SERVICES LTD,BA0000282152,151.60,849741385
BIS,The Insolvency Service,09/12/2014,Postage,OFFICIAL RECEIVER SERVICES                                                                          ,DX NETWORK SERVICES LTD,BA0000282152,157.46,849741385
BIS,The Insolvency Service,09/12/2014,Postage,OFFICIAL RECEIVER SERVICES                                                                          ,DX NETWORK SERVICES LTD,BA0000282152,177.37,849741385
BIS,The Insolvency Service,09/12/2014,Postage,OFFICIAL RECEIVER SERVICES                                                                          ,DX NETWORK SERVICES LTD,BA0000282152,186.01,849741385
BIS,The Insolvency Service,09/12/2014,Postage,OFFICIAL RECEIVER SERVICES                                                                          ,DX NETWORK SERVICES LTD,BA0000282152,189.71,849741385
BIS,The Insolvency Service,09/12/2014,Postage,OFFICIAL RECEIVER SERVICES                                                                          ,DX NETWORK SERVICES LTD,BA0000282152,214.33,849741385
BIS,The Insolvency Service,09/12/2014,Postage,OFFICIAL RECEIVER SERVICES                                                                          ,DX NETWORK SERVICES LTD,BA0000282152,226.86,849741385
BIS,The Insolvency Service,09/12/2014,Postage,OFFICIAL RECEIVER SERVICES                                                                          ,DX NETWORK SERVICES LTD,BA0000282152,237.05,849741385
BIS,The Insolvency Service,09/12/2014,Postage,OFFICIAL RECEIVER SERVICES                                                                          ,DX NETWORK SERVICES LTD,BA0000282152,242.44,849741385
BIS,The Insolvency Service,09/12/2014,Postage,OFFICIAL RECEIVER SERVICES                                                                          ,DX NETWORK SERVICES LTD,BA0000282152,242.69,849741385
BIS,The Insolvency Service,09/12/2014,Postage,OFFICIAL RECEIVER SERVICES                                                                          ,DX NETWORK SERVICES LTD,BA0000282152,252.87,849741385
BIS,The Insolvency Service,09/12/2014,Postage,OFFICIAL RECEIVER SERVICES                                                                          ,DX NETWORK SERVICES LTD,BA0000282152,375.03,849741385
BIS,The Insolvency Service,09/12/2014,Postage,OFFICIAL RECEIVER SERVICES                                                                          ,DX NETWORK SERVICES LTD,BA0000282152,449.04,849741385
BIS,The Insolvency Service,09/12/2014,Postage,OFFICIAL RECEIVER SERVICES                                                                          ,DX NETWORK SERVICES LTD,BA0000282152,682.93,849741385
BIS,The Insolvency Service,09/12/2014,Postage,OFFICIAL RECEIVER SERVICES                                                                          ,DX NETWORK SERVICES LTD,BA0000282152,718.94,849741385
BIS,The Insolvency Service,09/12/2014,Postage,OFFICIAL RECEIVER SERVICES                                                                          ,DX NETWORK SERVICES LTD,BA0000282152,760.90,849741385
BIS,The Insolvency Service,05/12/2014,Accommodation,ESTATES,E.ON,BA0000282097,"2,231.96",559097889
BIS,The Insolvency Service,12/12/2014,Accommodation,ESTATES,E.ON,BA0000282317,"1,171.35",559097889
BIS,The Insolvency Service,15/12/2014,Accommodation,ESTATES,E.ON,BA0000282400,115.22,559097889
BIS,The Insolvency Service,23/12/2014,Accommodation,ESTATES,E.ON,BA0000282652,"2,231.96",559097889
BIS,The Insolvency Service,16/12/2014,Office Supplies and Services,BUSINESS SERVICES DIRECTORATE                                                                       ,EC GROUP,BA0000282440,"1,245.11",235525471
BIS,The Insolvency Service,18/12/2014,Accommodation,ESTATES,EC HARRIS LLP,BA0000282506,"9,325.02",660476038
BIS,The Insolvency Service,01/12/2014,Accommodation,FINANCE AND COMMERCIAL                                                                              ,EC HARRIS LLP,BA0000281898,"3,060.00",660476038
BIS,The Insolvency Service,18/12/2014,Accommodation,FINANCE AND COMMERCIAL                                                                              ,EC HARRIS LLP,BA0000282504,"6,600.00",660476038
BIS,The Insolvency Service,18/12/2014,Accommodation,FINANCE AND COMMERCIAL                                                                              ,EC HARRIS LLP,BA0000282505,"6,840.00",660476038
BIS,The Insolvency Service,01/12/2014,Travel and Subsistence,OFFICIAL RECEIVER SERVICES                                                                          ,ECML NEWCASTLE PARKING,BA0000282566,15.00,
BIS,The Insolvency Service,01/12/2014,Travel and Subsistence,OFFICIAL RECEIVER SERVICES                                                                          ,ECML NEWCASTLE PARKING,BA0000282566,15.00,
BIS,The Insolvency Service,01/12/2014,Travel and Subsistence,OFFICIAL RECEIVER SERVICES                                                                          ,ECML NEWCASTLE PARKING,BA0000282566,15.00,
BIS,The Insolvency Service,01/12/2014,Travel and Subsistence,BUSINESS SERVICES DIRECTORATE                                                                       ,EMPARK                                                      ,BA0000282566,33.98,
BIS,The Insolvency Service,01/12/2014,Travel and Subsistence,BUSINESS SERVICES DIRECTORATE                                                                       ,EMPARK                                                      ,BA0000282566,33.98,
BIS,The Insolvency Service,01/12/2014,Travel and Subsistence,OFFICIAL RECEIVER SERVICES                                                                          ,ENTERPRISE RENT-A-CAR UK LTD,BA0000282566,70.80,641634450
BIS,The Insolvency Service,23/12/2014,Legal Costs,FINANCE AND COMMERCIAL                                                                              ,EVERSHEDS  LLP (LEEDS),BA0000282654,"13,724.00",820704559
BIS,The Insolvency Service,04/12/2014,Accommodation,ESTATES,F&C REIT ASSET MANAGEMENT PLC,BA0000282087,"70,530.00",209938729
BIS,The Insolvency Service,04/12/2014,Accommodation,ESTATES,F&C REIT ASSET MANAGEMENT PLC,BA0000282087,"21,048.12",209938729
BIS,The Insolvency Service,01/12/2014,Telecoms,BUSINESS SERVICES DIRECTORATE                                                                       ,FASTHOSTS INTERNET,BA0000282566,105.91,
BIS,The Insolvency Service,01/12/2014,Travel and Subsistence,OFFICIAL RECEIVER SERVICES                                                                          ,FIRST GREAT WESTERN                                         ,BA0000282566,43.30,
BIS,The Insolvency Service,01/12/2014,Travel and Subsistence,INVESTIGATIONS & ENFORCEMENT                                                                        ,FIRST GTR WESTERN,BA0000282566,5.50,
BIS,The Insolvency Service,01/12/2014,Travel and Subsistence,INVESTIGATIONS & ENFORCEMENT                                                                        ,FIRST GTR WESTERN,BA0000282566,9.90,
BIS,The Insolvency Service,11/12/2014,Accommodation,FINANCE AND COMMERCIAL                                                                              ,FLEXIFORM BUSINESS FURNITURE LTD,BA0000282247,"4,128.00",607217951
BIS,The Insolvency Service,19/12/2014,Accommodation,OFFICIAL RECEIVER SERVICES                                                                          ,FRANK G. BOWEN LTD,BA0000282531,63.00,238504366
BIS,The Insolvency Service,01/12/2014,Insolvency Case Related Costs,OFFICIAL RECEIVER SERVICES                                                                          ,FRANK G. BOWEN LTD,BA0000281904,330.00,238504366
BIS,The Insolvency Service,01/12/2014,Insolvency Case Related Costs,OFFICIAL RECEIVER SERVICES                                                                          ,FRANK G. BOWEN LTD,BA0000281905,156.78,238504366
BIS,The Insolvency Service,01/12/2014,Insolvency Case Related Costs,OFFICIAL RECEIVER SERVICES                                                                          ,FRANK G. BOWEN LTD,BA0000281918,75.60,238504366
BIS,The Insolvency Service,01/12/2014,Insolvency Case Related Costs,OFFICIAL RECEIVER SERVICES                                                                          ,FRANK G. BOWEN LTD,BA0000281919,227.70,238504366
BIS,The Insolvency Service,23/12/2014,Insolvency Case Related Costs,OFFICIAL RECEIVER SERVICES                                                                          ,FRANK G. BOWEN LTD,BA0000282630,75.60,238504366
BIS,The Insolvency Service,23/12/2014,Insolvency Case Related Costs,OFFICIAL RECEIVER SERVICES                                                                          ,FRANK G. BOWEN LTD,BA0000282631,75.60,238504366
BIS,The Insolvency Service,23/12/2014,Insolvency Case Related Costs,OFFICIAL RECEIVER SERVICES                                                                          ,FRANK G. BOWEN LTD,BA0000282632,75.60,238504366
BIS,The Insolvency Service,23/12/2014,Insolvency Case Related Costs,OFFICIAL RECEIVER SERVICES                                                                          ,FRANK G. BOWEN LTD,BA0000282633,75.60,238504366
BIS,The Insolvency Service,23/12/2014,Insolvency Case Related Costs,OFFICIAL RECEIVER SERVICES                                                                          ,FRANK G. BOWEN LTD,BA0000282634,78.00,238504366
BIS,The Insolvency Service,23/12/2014,Insolvency Case Related Costs,OFFICIAL RECEIVER SERVICES                                                                          ,FRANK G. BOWEN LTD,BA0000282635,185.58,238504366
BIS,The Insolvency Service,23/12/2014,Insolvency Case Related Costs,OFFICIAL RECEIVER SERVICES                                                                          ,FRANK G. BOWEN LTD,BA0000282636,132.00,238504366
BIS,The Insolvency Service,02/12/2014,Computer and IT Systems,INFORMATION TECHNOLOGY                                                                              ,G4S FIRE & SECURITY SYSTEMS (UK) LTD                        ,BA0000281902,246.42,238560256
BIS,The Insolvency Service,05/12/2014,Telecoms,BUSINESS SERVICES DIRECTORATE                                                                       ,GAMMA BUSINESS COMMUNICATIONS LTD,BA0000282110,4.87,823820344
BIS,The Insolvency Service,05/12/2014,Telecoms,BUSINESS SERVICES DIRECTORATE                                                                       ,GAMMA BUSINESS COMMUNICATIONS LTD,BA0000282110,130.32,823820344
BIS,The Insolvency Service,05/12/2014,Telecoms,FINANCE AND COMMERCIAL                                                                              ,GAMMA BUSINESS COMMUNICATIONS LTD,BA0000282110,775.76,823820344
BIS,The Insolvency Service,05/12/2014,Telecoms,INFORMATION TECHNOLOGY                                                                              ,GAMMA BUSINESS COMMUNICATIONS LTD,BA0000282110,176.65,823820344
BIS,The Insolvency Service,05/12/2014,Telecoms,OFFICIAL RECEIVER SERVICES                                                                          ,GAMMA BUSINESS COMMUNICATIONS LTD,BA0000282110,3.56,823820344
BIS,The Insolvency Service,05/12/2014,Telecoms,OFFICIAL RECEIVER SERVICES                                                                          ,GAMMA BUSINESS COMMUNICATIONS LTD,BA0000282110,52.83,823820344
BIS,The Insolvency Service,05/12/2014,Telecoms,OFFICIAL RECEIVER SERVICES                                                                          ,GAMMA BUSINESS COMMUNICATIONS LTD,BA0000282110,55.62,823820344
BIS,The Insolvency Service,05/12/2014,Telecoms,OFFICIAL RECEIVER SERVICES                                                                          ,GAMMA BUSINESS COMMUNICATIONS LTD,BA0000282110,58.57,823820344
BIS,The Insolvency Service,05/12/2014,Telecoms,OFFICIAL RECEIVER SERVICES                                                                          ,GAMMA BUSINESS COMMUNICATIONS LTD,BA0000282110,63.41,823820344
BIS,The Insolvency Service,05/12/2014,Telecoms,OFFICIAL RECEIVER SERVICES                                                                          ,GAMMA BUSINESS COMMUNICATIONS LTD,BA0000282110,80.00,823820344
BIS,The Insolvency Service,05/12/2014,Telecoms,OFFICIAL RECEIVER SERVICES                                                                          ,GAMMA BUSINESS COMMUNICATIONS LTD,BA0000282110,81.64,823820344
BIS,The Insolvency Service,05/12/2014,Telecoms,OFFICIAL RECEIVER SERVICES                                                                          ,GAMMA BUSINESS COMMUNICATIONS LTD,BA0000282110,109.78,823820344
BIS,The Insolvency Service,05/12/2014,Telecoms,OFFICIAL RECEIVER SERVICES                                                                          ,GAMMA BUSINESS COMMUNICATIONS LTD,BA0000282110,121.66,823820344
BIS,The Insolvency Service,05/12/2014,Telecoms,OFFICIAL RECEIVER SERVICES                                                                          ,GAMMA BUSINESS COMMUNICATIONS LTD,BA0000282110,193.81,823820344
BIS,The Insolvency Service,05/12/2014,Telecoms,OFFICIAL RECEIVER SERVICES                                                                          ,GAMMA BUSINESS COMMUNICATIONS LTD,BA0000282110,253.73,823820344
BIS,The Insolvency Service,05/12/2014,Telecoms,OFFICIAL RECEIVER SERVICES                                                                          ,GAMMA BUSINESS COMMUNICATIONS LTD,BA0000282110,255.71,823820344
BIS,The Insolvency Service,05/12/2014,Telecoms,OFFICIAL RECEIVER SERVICES                                                                          ,GAMMA BUSINESS COMMUNICATIONS LTD,BA0000282110,264.26,823820344
BIS,The Insolvency Service,05/12/2014,Telecoms,OFFICIAL RECEIVER SERVICES                                                                          ,GAMMA BUSINESS COMMUNICATIONS LTD,BA0000282110,265.80,823820344
BIS,The Insolvency Service,05/12/2014,Telecoms,OFFICIAL RECEIVER SERVICES                                                                          ,GAMMA BUSINESS COMMUNICATIONS LTD,BA0000282110,266.24,823820344
BIS,The Insolvency Service,05/12/2014,Telecoms,OFFICIAL RECEIVER SERVICES                                                                          ,GAMMA BUSINESS COMMUNICATIONS LTD,BA0000282110,627.68,823820344
BIS,The Insolvency Service,09/12/2014,Investigation and Enforcement Costs,CUSTOMER AND COMMUNICATIONS                                                                         ,GORKANA GROUP LTD                                           ,BA0000282160,474.32,757158012
BIS,The Insolvency Service,04/12/2014,Investigation and Enforcement Costs,CUSTOMER AND COMMUNICATIONS                                                                         ,GOVDELIVERY INC                                             ,BA0000282068,717.60,
BIS,The Insolvency Service,01/12/2014,Travel and Subsistence,OFFICIAL RECEIVER SERVICES                                                                          ,GREATER ANGLIA RAILWAY                                      ,BA0000282566,38.60,
BIS,The Insolvency Service,01/12/2014,Travel and Subsistence,OFFICIAL RECEIVER SERVICES                                                                          ,GREATER ANGLIA RAILWAY                                      ,BA0000282566,38.60,
BIS,The Insolvency Service,09/12/2014,Accommodation,ESTATES,GVA                                                         ,BA0000282190,511.67,657719590
BIS,The Insolvency Service,09/12/2014,Employee Related Costs,PEOPLE & CAPABILITY                                                                                 ,HEALTH MANAGEMENT LTD,BA0000282159,"2,310.00",792250621
BIS,The Insolvency Service,08/12/2014,Accommodation,INVESTIGATIONS & ENFORCEMENT                                                                        ,HILTON MILTON KEYNES                                        ,BA0000281972,"3,848.75",
BIS,The Insolvency Service,15/12/2014,Investigation and Enforcement Costs,OFFICIAL RECEIVER SERVICES                                                                          ,HMCTS,BA0000282233,480.00,
BIS,The Insolvency Service,15/12/2014,Investigation and Enforcement Costs,OFFICIAL RECEIVER SERVICES                                                                          ,HMCTS,BA0000282371,480.00,
BIS,The Insolvency Service,15/12/2014,Investigation and Enforcement Costs,OFFICIAL RECEIVER SERVICES                                                                          ,HMCTS,BA0000282228,200.00,
BIS,The Insolvency Service,15/12/2014,Investigation and Enforcement Costs,OFFICIAL RECEIVER SERVICES                                                                          ,HMCTS,BA0000282372,280.00,
BIS,The Insolvency Service,22/12/2014,Investigation and Enforcement Costs,OFFICIAL RECEIVER SERVICES                                                                          ,HMCTS,BA0000282447,50.00,
BIS,The Insolvency Service,22/12/2014,Investigation and Enforcement Costs,OFFICIAL RECEIVER SERVICES                                                                          ,HMCTS,BA0000282530,280.00,
BIS,The Insolvency Service,22/12/2014,Insolvency Case Related Costs,FINANCE AND COMMERCIAL,HMCTS,BA0000282569,155.00,
BIS,The Insolvency Service,15/12/2014,Investigation and Enforcement Costs,OFFICIAL RECEIVER SERVICES                                                                          ,HMCTS                                                       ,BA0000282227,280.00,
BIS,The Insolvency Service,22/12/2014,Investigation and Enforcement Costs,OFFICIAL RECEIVER SERVICES                                                                          ,HMCTS                                                       ,BA0000282446,480.00,
BIS,The Insolvency Service,22/12/2014,Investigation and Enforcement Costs,OFFICIAL RECEIVER SERVICES                                                                          ,HMCTS                                                       ,BA0000282532,280.00,
BIS,The Insolvency Service,01/12/2014,Insolvency Case Related Costs,BUSINESS SERVICES DIRECTORATE                                                                       ,HMCTS GENERIC                                               ,BA0000282566,100.00,
BIS,The Insolvency Service,01/12/2014,Insolvency Case Related Costs,OFFICIAL RECEIVER SERVICES                                                                          ,HMCTS GENERIC                                               ,BA0000282566,155.00,
BIS,The Insolvency Service,01/12/2014,Legal Costs,BUSINESS SERVICES DIRECTORATE                                                                       ,HMCTS GENERIC                                               ,BA0000282566,100.00,
BIS,The Insolvency Service,16/12/2014,Employee Related Costs,PEOPLE & CAPABILITY                                                                                 ,HMRC,BA0000282419,"2,184.90",888848141
BIS,The Insolvency Service,01/12/2014,Travel and Subsistence,OFFICIAL RECEIVER SERVICES                                                                          ,HOTELSMART,BA0000282566,75.00,
BIS,The Insolvency Service,11/12/2014,Investigation and Enforcement Costs,INVESTIGATIONS & ENFORCEMENT                                                                        ,HOWES PERCIVAL,BA0000282271,580.60,119523573
BIS,The Insolvency Service,11/12/2014,Investigation and Enforcement Costs,INVESTIGATIONS & ENFORCEMENT                                                                        ,HOWES PERCIVAL,BA0000282273,"43,023.46",119523573
BIS,The Insolvency Service,11/12/2014,Investigation and Enforcement Costs,INVESTIGATIONS & ENFORCEMENT                                                                        ,HOWES PERCIVAL,BA0000282275,"2,230.00",119523573
BIS,The Insolvency Service,11/12/2014,Investigation and Enforcement Costs,INVESTIGATIONS & ENFORCEMENT                                                                        ,HOWES PERCIVAL,BA0000282272,"11,722.50",119523573
BIS,The Insolvency Service,11/12/2014,Investigation and Enforcement Costs,INVESTIGATIONS & ENFORCEMENT                                                                        ,HOWES PERCIVAL,BA0000282274,"23,330.83",119523573
BIS,The Insolvency Service,11/12/2014,Investigation and Enforcement Costs,INVESTIGATIONS & ENFORCEMENT                                                                        ,HOWES PERCIVAL,BA0000282276,"9,155.31",119523573
BIS,The Insolvency Service,23/12/2014,Investigation and Enforcement Costs,INVESTIGATIONS & ENFORCEMENT                                                                        ,HOWES PERCIVAL,BA0000282645,"67,419.58",119523573
BIS,The Insolvency Service,04/12/2014,Insolvency Case Related Costs,OFFICIAL RECEIVER SERVICES                                                                          ,HPI LTD,BA0000282071,7.20,942407139
BIS,The Insolvency Service,05/12/2014,Insolvency Case Related Costs,OFFICIAL RECEIVER SERVICES                                                                          ,HPI LTD,BA0000282123,14.40,942407139
BIS,The Insolvency Service,10/12/2014,Insolvency Case Related Costs,OFFICIAL RECEIVER SERVICES                                                                          ,HPI LTD,BA0000282238,7.20,942407139
BIS,The Insolvency Service,12/12/2014,Insolvency Case Related Costs,OFFICIAL RECEIVER SERVICES                                                                          ,HPI LTD,BA0000282334,33.91,942407139
BIS,The Insolvency Service,12/12/2014,Insolvency Case Related Costs,OFFICIAL RECEIVER SERVICES                                                                          ,HPI LTD,BA0000282348,109.33,942407139
BIS,The Insolvency Service,15/12/2014,Insolvency Case Related Costs,OFFICIAL RECEIVER SERVICES                                                                          ,HPI LTD,BA0000282389,29.82,942407139
BIS,The Insolvency Service,23/12/2014,Insolvency Case Related Costs,OFFICIAL RECEIVER SERVICES                                                                          ,HPI LTD,BA0000282537,-7.20,942407139
BIS,The Insolvency Service,23/12/2014,Insolvency Case Related Costs,OFFICIAL RECEIVER SERVICES                                                                          ,HPI LTD,BA0000282620,87.34,942407139
BIS,The Insolvency Service,23/12/2014,Insolvency Case Related Costs,OFFICIAL RECEIVER SERVICES                                                                          ,HPI LTD,BA0000282638,7.00,942407139
BIS,The Insolvency Service,23/12/2014,Insolvency Case Related Costs,OFFICIAL RECEIVER SERVICES                                                                          ,HPI LTD,BA0000282639,7.00,942407139
BIS,The Insolvency Service,23/12/2014,Insolvency Case Related Costs,OFFICIAL RECEIVER SERVICES                                                                          ,HPI LTD,BA0000282640,13.00,942407139
BIS,The Insolvency Service,01/12/2014,Travel and Subsistence,FINANCE AND COMMERCIAL,HRG UK,BA0000282566,5.93,
BIS,The Insolvency Service,01/12/2014,Travel and Subsistence,FINANCE AND COMMERCIAL,HRG UK,BA0000282566,135.23,
BIS,The Insolvency Service,01/12/2014,Travel and Subsistence,FINANCE AND COMMERCIAL,HRG UK,BA0000282566,85.00,
BIS,The Insolvency Service,01/12/2014,Travel and Subsistence,FINANCE AND COMMERCIAL,HRG UK,BA0000282566,76.50,
BIS,The Insolvency Service,01/12/2014,Travel and Subsistence,FINANCE AND COMMERCIAL,HRG UK,BA0000282566,5.85,
BIS,The Insolvency Service,01/12/2014,Travel and Subsistence,FINANCE AND COMMERCIAL,HRG UK,BA0000282566,6.79,
BIS,The Insolvency Service,01/12/2014,Travel and Subsistence,FINANCE AND COMMERCIAL,HRG UK,BA0000282566,119.99,
BIS,The Insolvency Service,01/12/2014,Travel and Subsistence,FINANCE AND COMMERCIAL,HRG UK,BA0000282566,278.08,
BIS,The Insolvency Service,01/12/2014,Travel and Subsistence,FINANCE AND COMMERCIAL,HRG UK,BA0000282566,6.42,
BIS,The Insolvency Service,01/12/2014,Travel and Subsistence,FINANCE AND COMMERCIAL,HRG UK,BA0000282566,216.28,
BIS,The Insolvency Service,01/12/2014,Travel and Subsistence,FINANCE AND COMMERCIAL,HRG UK,BA0000282566,-75.00,
BIS,The Insolvency Service,01/12/2014,Travel and Subsistence,FINANCE AND COMMERCIAL,HRG UK,BA0000282566,75.00,
BIS,The Insolvency Service,01/12/2014,Travel and Subsistence,FINANCE AND COMMERCIAL,HRG UK,BA0000282566,5.43,
BIS,The Insolvency Service,01/12/2014,Travel and Subsistence,FINANCE AND COMMERCIAL,HRG UK,BA0000282566,49.99,
BIS,The Insolvency Service,01/12/2014,Travel and Subsistence,FINANCE AND COMMERCIAL,HRG UK,BA0000282566,70.24,
BIS,The Insolvency Service,01/12/2014,Travel and Subsistence,FINANCE AND COMMERCIAL,HRG UK,BA0000282566,6.11,
BIS,The Insolvency Service,01/12/2014,Travel and Subsistence,FINANCE AND COMMERCIAL,HRG UK,BA0000282566,164.99,
BIS,The Insolvency Service,01/12/2014,Travel and Subsistence,FINANCE AND COMMERCIAL,HRG UK,BA0000282566,76.00,
BIS,The Insolvency Service,01/12/2014,Travel and Subsistence,FINANCE AND COMMERCIAL,HRG UK,BA0000282566,445.00,
BIS,The Insolvency Service,01/12/2014,Travel and Subsistence,FINANCE AND COMMERCIAL,HRG UK,BA0000282566,6.23,
BIS,The Insolvency Service,01/12/2014,Travel and Subsistence,FINANCE AND COMMERCIAL,HRG UK,BA0000282566,94.99,
BIS,The Insolvency Service,01/12/2014,Travel and Subsistence,FINANCE AND COMMERCIAL,HRG UK,BA0000282566,149.98,
BIS,The Insolvency Service,01/12/2014,Travel and Subsistence,FINANCE AND COMMERCIAL,HRG UK,BA0000282566,185.38,
BIS,The Insolvency Service,01/12/2014,Travel and Subsistence,FINANCE AND COMMERCIAL,HRG UK,BA0000282566,63.78,
BIS,The Insolvency Service,01/12/2014,Travel and Subsistence,FINANCE AND COMMERCIAL,HRG UK,BA0000282566,5.69,
BIS,The Insolvency Service,01/12/2014,Travel and Subsistence,FINANCE AND COMMERCIAL,HRG UK,BA0000282566,6.03,
BIS,The Insolvency Service,01/12/2014,Travel and Subsistence,FINANCE AND COMMERCIAL,HRG UK,BA0000282566,6.05,
BIS,The Insolvency Service,01/12/2014,Travel and Subsistence,FINANCE AND COMMERCIAL,HRG UK,BA0000282566,154.98,
BIS,The Insolvency Service,01/12/2014,Travel and Subsistence,FINANCE AND COMMERCIAL,HRG UK,BA0000282566,52.00,
BIS,The Insolvency Service,01/12/2014,Travel and Subsistence,FINANCE AND COMMERCIAL,HRG UK,BA0000282566,64.99,
BIS,The Insolvency Service,01/12/2014,Travel and Subsistence,FINANCE AND COMMERCIAL,HRG UK,BA0000282566,164.99,
BIS,The Insolvency Service,01/12/2014,Travel and Subsistence,FINANCE AND COMMERCIAL,HRG UK,BA0000282566,142.00,
BIS,The Insolvency Service,04/12/2014,Agency Workers,FINANCE AND COMMERCIAL,HUDSON GLOBAL RESOURCES LTD,BA0000282041,"2,247.36",
BIS,The Insolvency Service,05/12/2014,Agency Workers,FINANCE AND COMMERCIAL,HUDSON GLOBAL RESOURCES LTD,BA0000282118,"2,247.36",
BIS,The Insolvency Service,09/12/2014,Agency Workers,FINANCE AND COMMERCIAL,HUDSON GLOBAL RESOURCES LTD,BA0000282191,"2,022.62",
BIS,The Insolvency Service,15/12/2014,Agency Workers,FINANCE AND COMMERCIAL,HUDSON GLOBAL RESOURCES LTD,BA0000282369,"1,797.89",
BIS,The Insolvency Service,22/12/2014,Agency Workers,FINANCE AND COMMERCIAL,HUDSON GLOBAL RESOURCES LTD,BA0000282598,"1,685.52",
BIS,The Insolvency Service,31/12/2014,Agency Workers,FINANCE AND COMMERCIAL,HUDSON GLOBAL RESOURCES LTD,BA0000282719,"2,247.36",
BIS,The Insolvency Service,01/12/2014,Insolvency Case Related Costs,OFFICIAL RECEIVER SERVICES                                                                          ,INSOLVENCY SERVICE,BA0000281926,60.00,
BIS,The Insolvency Service,10/12/2014,Insolvency Case Related Costs,OFFICIAL RECEIVER SERVICES                                                                          ,INSOLVENCY SERVICE,BA0000282229,40.00,
BIS,The Insolvency Service,01/12/2014,Investigation and Enforcement Costs,OFFICIAL RECEIVER SERVICES                                                                          ,INSOLVENCY SERVICE,BA0000281894,40.00,
BIS,The Insolvency Service,12/12/2014,Accommodation,BUSINESS SERVICES DIRECTORATE                                                                       ,IRON MOUNTAIN (UK) LTD,BA0000282290,"2,916.47",607937516
BIS,The Insolvency Service,12/12/2014,Accommodation,CUSTOMER AND COMMUNICATIONS                                                                         ,IRON MOUNTAIN (UK) LTD,BA0000282290,1.47,607937516
BIS,The Insolvency Service,12/12/2014,Accommodation,EXTERNAL AFFAIRS                                                                                    ,IRON MOUNTAIN (UK) LTD,BA0000282290,217.58,607937516
BIS,The Insolvency Service,12/12/2014,Accommodation,INFORMATION TECHNOLOGY                                                                              ,IRON MOUNTAIN (UK) LTD,BA0000282290,307.23,607937516
BIS,The Insolvency Service,12/12/2014,Accommodation,INVESTIGATIONS & ENFORCEMENT                                                                        ,IRON MOUNTAIN (UK) LTD,BA0000282290,"3,094.18",607937516
BIS,The Insolvency Service,12/12/2014,Accommodation,OFFICIAL RECEIVER SERVICES                                                                          ,IRON MOUNTAIN (UK) LTD,BA0000282290,"31,689.32",607937516
BIS,The Insolvency Service,12/12/2014,Accommodation,PEOPLE & CAPABILITY                                                                                 ,IRON MOUNTAIN (UK) LTD,BA0000282290,68.10,607937516
BIS,The Insolvency Service,04/12/2014,Accommodation,FINANCE AND COMMERCIAL                                                                              ,JENNOR (UK) LTD                                             ,BA0000282044,"28,453.19",
BIS,The Insolvency Service,16/12/2014,Accommodation,FINANCE AND COMMERCIAL                                                                              ,JOHNSONS MOVING SERVICES LTD                                ,BA0000282450,360.00,813052765
BIS,The Insolvency Service,16/12/2014,Accommodation,FINANCE AND COMMERCIAL                                                                              ,JOHNSONS MOVING SERVICES LTD                                ,BA0000282452,787.50,813052765
BIS,The Insolvency Service,01/12/2014,Office Supplies and Services,OFFICIAL RECEIVER SERVICES                                                                          ,JORDAN PUBLISHING LIMITED,BA0000281928,410.00,137444271
BIS,The Insolvency Service,23/12/2014,Office Supplies and Services,OFFICIAL RECEIVER SERVICES                                                                          ,JORDAN PUBLISHING LIMITED,BA0000282627,171.00,137444271
BIS,The Insolvency Service,12/12/2014,Investigation and Enforcement Costs,INVESTIGATIONS & ENFORCEMENT                                                                        ,K INTERNATIONAL PLC,BA0000282323,6.16,600413800
BIS,The Insolvency Service,12/12/2014,Translation Costs,INFORMATION TECHNOLOGY                                                                              ,K INTERNATIONAL PLC,BA0000282323,56.06,600413800
BIS,The Insolvency Service,12/12/2014,Translation Costs,OFFICIAL RECEIVER SERVICES                                                                          ,K INTERNATIONAL PLC,BA0000282323,"1,464.75",600413800
BIS,The Insolvency Service,19/12/2014,Translation Costs,OFFICIAL RECEIVER SERVICES                                                                          ,K INTERNATIONAL PLC,BA0000282510,"1,317.95",600413800
BIS,The Insolvency Service,04/12/2014,Accounting and Banking,FINANCE AND COMMERCIAL,KDS UK LTD,BA0000282088,"2,786.40",776463881
BIS,The Insolvency Service,04/12/2014,Accommodation,ESTATES,KINGSTON (SENATE) LTD,BA0000282086,"41,625.60",140357635
BIS,The Insolvency Service,12/12/2014,Accounting and Banking,FINANCE AND COMMERCIAL,KYPERA LTD,BA0000282319,"4,590.00",813905437
BIS,The Insolvency Service,12/12/2014,Accounting and Banking,FINANCE AND COMMERCIAL,KYPERA LTD,BA0000282320,"6,630.48",813905437
BIS,The Insolvency Service,12/12/2014,Accounting and Banking,FINANCE AND COMMERCIAL,KYPERA LTD,BA0000282321,"1,043.64",813905437
BIS,The Insolvency Service,05/12/2014,Agency Workers,INFORMATION TECHNOLOGY                                                                              ,LA INTERNATIONAL COMPUTER CONSULTANTS LTD,BA0000282109,"11,494.08",
BIS,The Insolvency Service,31/12/2014,Accommodation,OFFICIAL RECEIVER SERVICES                                                                          ,LAND REGISTRY TELFORD,BA0000282767,"1,239.30",
BIS,The Insolvency Service,01/12/2014,Travel and Subsistence,INVESTIGATIONS & ENFORCEMENT                                                                        ,LONDON & SOUTH EAS,BA0000282566,11.40,
BIS,The Insolvency Service,01/12/2014,Travel and Subsistence,BUSINESS SERVICES DIRECTORATE                                                                       ,LONDON MIDLAND SEL,BA0000282566,150.00,
BIS,The Insolvency Service,01/12/2014,Travel and Subsistence,INVESTIGATIONS & ENFORCEMENT                                                                        ,LUL TICKET MACHINE,BA0000282566,20.00,
BIS,The Insolvency Service,01/12/2014,Travel and Subsistence,INVESTIGATIONS & ENFORCEMENT                                                                        ,LUL TICKET MACHINE,BA0000282566,8.90,
BIS,The Insolvency Service,01/12/2014,Travel and Subsistence,INVESTIGATIONS & ENFORCEMENT                                                                        ,LUL TICKET MACHINE,BA0000282566,20.00,
BIS,The Insolvency Service,01/12/2014,Travel and Subsistence,INVESTIGATIONS & ENFORCEMENT                                                                        ,LUL TICKET MACHINE,BA0000282566,60.00,
BIS,The Insolvency Service,01/12/2014,Travel and Subsistence,OFFICIAL RECEIVER SERVICES                                                                          ,LUL TICKET MACHINE,BA0000282566,9.00,
BIS,The Insolvency Service,01/12/2014,Travel and Subsistence,OFFICIAL RECEIVER SERVICES                                                                          ,LUL TICKET MACHINE,BA0000282566,8.90,
BIS,The Insolvency Service,01/12/2014,Travel and Subsistence,OFFICIAL RECEIVER SERVICES                                                                          ,LUL TICKET MACHINE,BA0000282566,20.00,
BIS,The Insolvency Service,01/12/2014,Travel and Subsistence,OFFICIAL RECEIVER SERVICES                                                                          ,LUL TICKET MACHINE,BA0000282566,11.40,
BIS,The Insolvency Service,01/12/2014,Travel and Subsistence,PEOPLE & CAPABILITY                                                                                 ,LUL TICKET MACHINE,BA0000282566,20.00,
BIS,The Insolvency Service,11/12/2014,Training Costs,PEOPLE & CAPABILITY                                                                                 ,MA BUSINESS & LEISURE                                       ,BA0000282281,"5,000.00",844127044
BIS,The Insolvency Service,01/12/2014,Office Supplies and Services,OFFICIAL RECEIVER SERVICES                                                                          ,MAPLIN ELECTICAL STORES,BA0000282566,20.98,
BIS,The Insolvency Service,15/12/2014,Accommodation,ESTATES,MARITIME & COASTGUARD AGENCY,BA0000282379,"21,326.63",
BIS,The Insolvency Service,15/12/2014,Accommodation,ESTATES,MARITIME & COASTGUARD AGENCY,BA0000282379,"13,400.00",
BIS,The Insolvency Service,01/12/2014,Accommodation,OFFICIAL RECEIVER SERVICES                                                                          ,MARKS & SPENCER PLC,BA0000282566,53.00,
BIS,The Insolvency Service,01/12/2014,Accommodation,OFFICIAL RECEIVER SERVICES                                                                          ,MARKS & SPENCER PLC,BA0000282566,120.50,
BIS,The Insolvency Service,01/12/2014,Accommodation,OFFICIAL RECEIVER SERVICES                                                                          ,MARKS & SPENCER PLC - SALFORD,BA0000282566,20.54,232128892
BIS,The Insolvency Service,04/12/2014,Agency Workers,FINANCE AND COMMERCIAL                                                                              ,METHODS PROFESSIONAL SERVICES LTD                           ,BA0000282090,"13,246.20",859140314
BIS,The Insolvency Service,10/12/2014,Agency Workers,FINANCE AND COMMERCIAL                                                                              ,METHODS PROFESSIONAL SERVICES LTD                           ,BA0000282221,"12,042.00",859140314
BIS,The Insolvency Service,10/12/2014,Agency Workers,FINANCE AND COMMERCIAL                                                                              ,METHODS PROFESSIONAL SERVICES LTD                           ,BA0000282213,323.30,859140314
BIS,The Insolvency Service,12/12/2014,Agency Workers,FINANCE AND COMMERCIAL                                                                              ,METHODS PROFESSIONAL SERVICES LTD                           ,BA0000282326,"2,664.00",859140314
BIS,The Insolvency Service,23/12/2014,Agency Workers,FINANCE AND COMMERCIAL                                                                              ,METHODS PROFESSIONAL SERVICES LTD                           ,BA0000282650,"3,330.00",859140314
BIS,The Insolvency Service,29/12/2014,Agency Workers,FINANCE AND COMMERCIAL                                                                              ,METHODS PROFESSIONAL SERVICES LTD                           ,BA0000282674,"2,997.00",859140314
BIS,The Insolvency Service,04/12/2014,Accommodation,OFFICIAL RECEIVER SERVICES                                                                          ,MIDDLESBROUGH COUNCIL                                       ,BA0000282072,324.92,734213854
BIS,The Insolvency Service,31/12/2014,Department for Business Innovation and Skills,FINANCE AND COMMERCIAL                                                                              ,MYCSP LTD,BA0000282738,"14,309.52",
BIS,The Insolvency Service,01/12/2014,Travel and Subsistence,OFFICIAL RECEIVER SERVICES                                                                          ,NCP PARKING,BA0000282566,6.00,
BIS,The Insolvency Service,01/12/2014,Travel and Subsistence,OFFICIAL RECEIVER SERVICES                                                                          ,NCP PARKING,BA0000282566,6.00,
BIS,The Insolvency Service,01/12/2014,Travel and Subsistence,OFFICIAL RECEIVER SERVICES                                                                          ,NCP PARKING,BA0000282566,6.00,
BIS,The Insolvency Service,01/12/2014,Travel and Subsistence,OFFICIAL RECEIVER SERVICES                                                                          ,NCP PARKING,BA0000282566,6.00,
BIS,The Insolvency Service,01/12/2014,Travel and Subsistence,OFFICIAL RECEIVER SERVICES                                                                          ,NCP PARKING,BA0000282566,6.00,
BIS,The Insolvency Service,01/12/2014,Travel and Subsistence,OFFICIAL RECEIVER SERVICES                                                                          ,NCP PARKING,BA0000282566,6.00,
BIS,The Insolvency Service,02/12/2014,Office Supplies and Services,OFFICIAL RECEIVER SERVICES                                                                          ,NEOPOST LIMITED (CONSUMABLES),BA0000281994,332.50,597265489
BIS,The Insolvency Service,02/12/2014,Office Supplies and Services,OFFICIAL RECEIVER SERVICES                                                                          ,NEOPOST LIMITED (CONSUMABLES),BA0000281995,51.59,597265489
BIS,The Insolvency Service,10/12/2014,Office Supplies and Services,OFFICIAL RECEIVER SERVICES                                                                          ,NEOPOST LIMITED (CONSUMABLES),BA0000282231,352.06,597265489
BIS,The Insolvency Service,04/12/2014,Postage,BUSINESS SERVICES DIRECTORATE                                                                       ,NEOPOST LTD - FRANKING TOP UPS,BA0000282084,16.50,
BIS,The Insolvency Service,04/12/2014,Postage,BUSINESS SERVICES DIRECTORATE                                                                       ,NEOPOST LTD - FRANKING TOP UPS,BA0000282084,100.00,
BIS,The Insolvency Service,04/12/2014,Postage,BUSINESS SERVICES DIRECTORATE                                                                       ,NEOPOST LTD - FRANKING TOP UPS,BA0000282084,300.00,
BIS,The Insolvency Service,04/12/2014,Postage,BUSINESS SERVICES DIRECTORATE                                                                       ,NEOPOST LTD - FRANKING TOP UPS,BA0000282084,330.00,
BIS,The Insolvency Service,04/12/2014,Postage,BUSINESS SERVICES DIRECTORATE                                                                       ,NEOPOST LTD - FRANKING TOP UPS,BA0000282084,410.00,
BIS,The Insolvency Service,04/12/2014,Postage,BUSINESS SERVICES DIRECTORATE                                                                       ,NEOPOST LTD - FRANKING TOP UPS,BA0000282084,800.00,
BIS,The Insolvency Service,12/12/2014,Postage,BUSINESS SERVICES DIRECTORATE                                                                       ,NEOPOST LTD - FRANKING TOP UPS,BA0000282333,33.00,
BIS,The Insolvency Service,12/12/2014,Postage,BUSINESS SERVICES DIRECTORATE                                                                       ,NEOPOST LTD - FRANKING TOP UPS,BA0000282333,100.00,
BIS,The Insolvency Service,12/12/2014,Postage,BUSINESS SERVICES DIRECTORATE                                                                       ,NEOPOST LTD - FRANKING TOP UPS,BA0000282333,300.00,
BIS,The Insolvency Service,12/12/2014,Postage,BUSINESS SERVICES DIRECTORATE                                                                       ,NEOPOST LTD - FRANKING TOP UPS,BA0000282333,330.00,
BIS,The Insolvency Service,12/12/2014,Postage,BUSINESS SERVICES DIRECTORATE                                                                       ,NEOPOST LTD - FRANKING TOP UPS,BA0000282333,333.00,
BIS,The Insolvency Service,12/12/2014,Postage,BUSINESS SERVICES DIRECTORATE                                                                       ,NEOPOST LTD - FRANKING TOP UPS,BA0000282333,800.00,
BIS,The Insolvency Service,18/12/2014,Postage,BUSINESS SERVICES DIRECTORATE                                                                       ,NEOPOST LTD - FRANKING TOP UPS,BA0000282489,300.00,
BIS,The Insolvency Service,18/12/2014,Postage,BUSINESS SERVICES DIRECTORATE                                                                       ,NEOPOST LTD - FRANKING TOP UPS,BA0000282489,330.00,
BIS,The Insolvency Service,18/12/2014,Postage,BUSINESS SERVICES DIRECTORATE                                                                       ,NEOPOST LTD - FRANKING TOP UPS,BA0000282489,410.00,
BIS,The Insolvency Service,18/12/2014,Postage,BUSINESS SERVICES DIRECTORATE                                                                       ,NEOPOST LTD - FRANKING TOP UPS,BA0000282489,800.00,
BIS,The Insolvency Service,31/12/2014,Postage,BUSINESS SERVICES DIRECTORATE                                                                       ,NEOPOST LTD - FRANKING TOP UPS,BA0000282747,100.00,
BIS,The Insolvency Service,31/12/2014,Postage,BUSINESS SERVICES DIRECTORATE                                                                       ,NEOPOST LTD - FRANKING TOP UPS,BA0000282747,300.00,
BIS,The Insolvency Service,31/12/2014,Postage,BUSINESS SERVICES DIRECTORATE                                                                       ,NEOPOST LTD - FRANKING TOP UPS,BA0000282747,800.00,
BIS,The Insolvency Service,04/12/2014,Postage,INFORMATION TECHNOLOGY                                                                              ,NEOPOST LTD - FRANKING TOP UPS,BA0000282084,"5,000.00",
BIS,The Insolvency Service,12/12/2014,Postage,INFORMATION TECHNOLOGY                                                                              ,NEOPOST LTD - FRANKING TOP UPS,BA0000282333,"5,000.00",
BIS,The Insolvency Service,18/12/2014,Postage,INFORMATION TECHNOLOGY                                                                              ,NEOPOST LTD - FRANKING TOP UPS,BA0000282489,"5,000.00",
BIS,The Insolvency Service,31/12/2014,Postage,INFORMATION TECHNOLOGY                                                                              ,NEOPOST LTD - FRANKING TOP UPS,BA0000282747,"5,000.00",
BIS,The Insolvency Service,04/12/2014,Postage,OFFICIAL RECEIVER SERVICES                                                                          ,NEOPOST LTD - FRANKING TOP UPS,BA0000282084,33.50,
BIS,The Insolvency Service,04/12/2014,Postage,OFFICIAL RECEIVER SERVICES                                                                          ,NEOPOST LTD - FRANKING TOP UPS,BA0000282084,50.00,
BIS,The Insolvency Service,04/12/2014,Postage,OFFICIAL RECEIVER SERVICES                                                                          ,NEOPOST LTD - FRANKING TOP UPS,BA0000282084,100.00,
BIS,The Insolvency Service,04/12/2014,Postage,OFFICIAL RECEIVER SERVICES                                                                          ,NEOPOST LTD - FRANKING TOP UPS,BA0000282084,200.00,
BIS,The Insolvency Service,04/12/2014,Postage,OFFICIAL RECEIVER SERVICES                                                                          ,NEOPOST LTD - FRANKING TOP UPS,BA0000282084,200.00,
BIS,The Insolvency Service,04/12/2014,Postage,OFFICIAL RECEIVER SERVICES                                                                          ,NEOPOST LTD - FRANKING TOP UPS,BA0000282084,400.00,
BIS,The Insolvency Service,04/12/2014,Postage,OFFICIAL RECEIVER SERVICES                                                                          ,NEOPOST LTD - FRANKING TOP UPS,BA0000282084,590.00,
BIS,The Insolvency Service,04/12/2014,Postage,OFFICIAL RECEIVER SERVICES                                                                          ,NEOPOST LTD - FRANKING TOP UPS,BA0000282084,600.00,
BIS,The Insolvency Service,04/12/2014,Postage,OFFICIAL RECEIVER SERVICES                                                                          ,NEOPOST LTD - FRANKING TOP UPS,BA0000282084,670.00,
BIS,The Insolvency Service,04/12/2014,Postage,OFFICIAL RECEIVER SERVICES                                                                          ,NEOPOST LTD - FRANKING TOP UPS,BA0000282084,700.00,
BIS,The Insolvency Service,04/12/2014,Postage,OFFICIAL RECEIVER SERVICES                                                                          ,NEOPOST LTD - FRANKING TOP UPS,BA0000282084,"1,000.00",
BIS,The Insolvency Service,12/12/2014,Postage,OFFICIAL RECEIVER SERVICES                                                                          ,NEOPOST LTD - FRANKING TOP UPS,BA0000282333,67.00,
BIS,The Insolvency Service,12/12/2014,Postage,OFFICIAL RECEIVER SERVICES                                                                          ,NEOPOST LTD - FRANKING TOP UPS,BA0000282333,200.00,
BIS,The Insolvency Service,12/12/2014,Postage,OFFICIAL RECEIVER SERVICES                                                                          ,NEOPOST LTD - FRANKING TOP UPS,BA0000282333,200.00,
BIS,The Insolvency Service,12/12/2014,Postage,OFFICIAL RECEIVER SERVICES                                                                          ,NEOPOST LTD - FRANKING TOP UPS,BA0000282333,400.00,
BIS,The Insolvency Service,12/12/2014,Postage,OFFICIAL RECEIVER SERVICES                                                                          ,NEOPOST LTD - FRANKING TOP UPS,BA0000282333,567.00,
BIS,The Insolvency Service,12/12/2014,Postage,OFFICIAL RECEIVER SERVICES                                                                          ,NEOPOST LTD - FRANKING TOP UPS,BA0000282333,670.00,
BIS,The Insolvency Service,12/12/2014,Postage,OFFICIAL RECEIVER SERVICES                                                                          ,NEOPOST LTD - FRANKING TOP UPS,BA0000282333,"1,000.00",
BIS,The Insolvency Service,12/12/2014,Postage,OFFICIAL RECEIVER SERVICES                                                                          ,NEOPOST LTD - FRANKING TOP UPS,BA0000282333,"1,000.00",
BIS,The Insolvency Service,12/12/2014,Postage,OFFICIAL RECEIVER SERVICES                                                                          ,NEOPOST LTD - FRANKING TOP UPS,BA0000282333,"1,000.00",
BIS,The Insolvency Service,18/12/2014,Postage,OFFICIAL RECEIVER SERVICES                                                                          ,NEOPOST LTD - FRANKING TOP UPS,BA0000282489,200.00,
BIS,The Insolvency Service,18/12/2014,Postage,OFFICIAL RECEIVER SERVICES                                                                          ,NEOPOST LTD - FRANKING TOP UPS,BA0000282489,200.00,
BIS,The Insolvency Service,18/12/2014,Postage,OFFICIAL RECEIVER SERVICES                                                                          ,NEOPOST LTD - FRANKING TOP UPS,BA0000282489,590.00,
BIS,The Insolvency Service,18/12/2014,Postage,OFFICIAL RECEIVER SERVICES                                                                          ,NEOPOST LTD - FRANKING TOP UPS,BA0000282489,600.00,
BIS,The Insolvency Service,18/12/2014,Postage,OFFICIAL RECEIVER SERVICES                                                                          ,NEOPOST LTD - FRANKING TOP UPS,BA0000282489,670.00,
BIS,The Insolvency Service,18/12/2014,Postage,OFFICIAL RECEIVER SERVICES                                                                          ,NEOPOST LTD - FRANKING TOP UPS,BA0000282489,700.00,
BIS,The Insolvency Service,18/12/2014,Postage,OFFICIAL RECEIVER SERVICES                                                                          ,NEOPOST LTD - FRANKING TOP UPS,BA0000282489,"1,000.00",
BIS,The Insolvency Service,18/12/2014,Postage,OFFICIAL RECEIVER SERVICES                                                                          ,NEOPOST LTD - FRANKING TOP UPS,BA0000282489,"1,000.00",
BIS,The Insolvency Service,31/12/2014,Postage,OFFICIAL RECEIVER SERVICES                                                                          ,NEOPOST LTD - FRANKING TOP UPS,BA0000282747,100.00,
BIS,The Insolvency Service,31/12/2014,Postage,OFFICIAL RECEIVER SERVICES                                                                          ,NEOPOST LTD - FRANKING TOP UPS,BA0000282747,200.00,
BIS,The Insolvency Service,31/12/2014,Postage,OFFICIAL RECEIVER SERVICES                                                                          ,NEOPOST LTD - FRANKING TOP UPS,BA0000282747,200.00,
BIS,The Insolvency Service,31/12/2014,Postage,OFFICIAL RECEIVER SERVICES                                                                          ,NEOPOST LTD - FRANKING TOP UPS,BA0000282747,400.00,
BIS,The Insolvency Service,31/12/2014,Postage,OFFICIAL RECEIVER SERVICES                                                                          ,NEOPOST LTD - FRANKING TOP UPS,BA0000282747,"1,000.00",
BIS,The Insolvency Service,01/12/2014,Computer and IT Systems,INFORMATION TECHNOLOGY                                                                              ,NINE TELECOM,BA0000281901,720.00,886132113
BIS,The Insolvency Service,19/12/2014,Telecoms,BUSINESS SERVICES DIRECTORATE                                                                       ,NINE TELECOM,BA0000282546,"1,437.24",886132113
BIS,The Insolvency Service,02/12/2014,Telecoms,FINANCE AND COMMERCIAL                                                                              ,NINE TELECOM - NINE SERVICES LTD                            ,BA0000281975,"3,688.80",886132113
BIS,The Insolvency Service,02/12/2014,Telecoms,FINANCE AND COMMERCIAL                                                                              ,NINE TELECOM - NINE SERVICES LTD                            ,BA0000281997,936.00,886132113
BIS,The Insolvency Service,22/12/2014,Telecoms,FINANCE AND COMMERCIAL                                                                              ,NINE TELECOM - NINE SERVICES LTD                            ,BA0000282601,630.00,886132113
BIS,The Insolvency Service,22/12/2014,Telecoms,FINANCE AND COMMERCIAL                                                                              ,NINE TELECOM - NINE SERVICES LTD                            ,BA0000282594,"1,980.00",886132113
BIS,The Insolvency Service,22/12/2014,Telecoms,OFFICIAL RECEIVER SERVICES                                                                          ,NINE TELECOM - NINE SERVICES LTD                            ,BA0000282595,"10,405.80",886132113
BIS,The Insolvency Service,05/12/2014,Computer and IT Systems,BUSINESS SERVICES DIRECTORATE                                                                       ,NORTHGATE INFORMATION SOLUTIONS UK LTD.,BA0000282129,"2,284.80",207588545
BIS,The Insolvency Service,05/12/2014,Computer and IT Systems,BUSINESS SERVICES DIRECTORATE                                                                       ,NORTHGATE INFORMATION SOLUTIONS UK LTD.,BA0000282130,"13,579.20",207588545
BIS,The Insolvency Service,02/12/2014,Computer and IT Systems,INFORMATION TECHNOLOGY                                                                              ,NORTHGATE INFORMATION SOLUTIONS UK LTD.,BA0000281958,"8,121.60",207588545
BIS,The Insolvency Service,02/12/2014,Computer and IT Systems,INFORMATION TECHNOLOGY                                                                              ,NORTHGATE INFORMATION SOLUTIONS UK LTD.,BA0000281959,"1,142.40",207588545
BIS,The Insolvency Service,23/12/2014,Computer and IT Systems,PROJECTS                                                                                            ,NORTHGATE INFORMATION SOLUTIONS UK LTD.,BA0000282651,"4,542.79",207588545
BIS,The Insolvency Service,10/12/2014,Accommodation,ESTATES,NPOWER BUSINESS (NPOWER MBA Ltd ACC V931001),BA0000282226,255.82,768362492
BIS,The Insolvency Service,04/12/2014,Employee Related Costs,PEOPLE & CAPABILITY                                                                                 ,ONLINE ERGONOMICS,BA0000282074,49.79,807348719
